{"text_format":"1","workbook":"xlsx","n_sheets":4,"sheets":["Bestillingsskjema","Database","Lister","Rangering"],"not_rendered":{"charts":0,"images":2,"macros":1,"external_links":0,"defined_names":8,"comments":0,"pivot_tables":0},"unopened":[],"bounds":{"document_bytes":16777216,"sheet_cells":100000,"rows_first":2000,"rows_last":500,"rows_between":2000,"halvings":0,"cell_chars":16384,"cell_head_chars":4096},"cells_cut":0,"cells_raw":0,"read":"whole","date_system":"1900"}

{"sheet":"Bestillingsskjema","index":0,"n_rows":28,"n_cols":17,"rows_kept":28,"cut":false,"hidden":false,"merged":[[7,2,7,5],[9,2,9,5],[11,2,11,5]]}
[]
[null,null,null,null,null,null,null,null,null,null,null,null,null,{"$f":"VLOOKUP(C8,Lister!$C$2:$D$6,1,FALSE)","v":"1 - Velg område fra rullegardinen her"}]
[]
[]
[null,null,"Bestillingsskjema for Konsulenttjenester strategi- og lederutvikling",null,null,null,null,null,null,null,null,null,null,{"$f":"VLOOKUP(C8,FINN_OMRÅDE,2,FALSE)","v":"Velg_omr"}]
[null,null,null,null,null,null,null,null,null,null,null,null,null,{"$f":"VLOOKUP(C10,Lister!$E$2:$E$8,1,FALSE)","v":"2 - Velg delområde fra rullegardinen her"}]
[]
[null,null,"1 - Velg område fra rullegardinen her",null,null,null,null,"Veiledning til bestillingsskjema"]
[]
[null,null,"2 - Velg delområde fra rullegardinen her"]
[null,null,null,null,null,null,null,"Dette bestillingsskjemaet gjelder for Konsulenttjenster strategi- og lederutvikling."]
[null,null,null,null,null,null,null,"Bestiller skal avrope ved minikonkurranse på alle oppdrag. \nLikelydene om konsulent(er) skal sendes til alle avtaleleverandørene."]
[]
[null,null,null,{"$f":"\"Avtaleleverandører i alfabetisk rekkefølge - \"&C10","v":"Avtaleleverandører i alfabetisk rekkefølge - 2 - Velg delområde fra rullegardinen her"},null,null,null,"I dette bestillingskjemaet ligger kontaktinformasjonen til alle leverandørene. Ved å bruke dette skjemaet genereres det automatisk e-post til alle leverandørene for valgt region og delområde.",null,null,null,null,{"$f":"IF(D14>0,\"\",\"x\")","v":""}]
[]
[null,null,"Antall","Leverandør","E-post","Telefon",null,"Hvordan benytte bestillingskjemaet:",null,null,null,null,{"$f":"IF(D16>0,\"\",\"x\")","v":""}]
[null,null,1,{"$f":"VLOOKUP($N17,Database!$A$2:$R$1463,5,FALSE)","v":0},{"$f":"VLOOKUP($N17,Database!$A$2:$R$1463,6,FALSE)","v":0},{"$f":"VLOOKUP($N17,Database!$A$2:$R$1463,7,FALSE)","v":0},null,"1. Velgditt regionale helseforeta til rullegardin",null,null,null,null,"x",{"$f":"$N$2&$N$6&$C$17","v":"1 - Velg område fra rullegardinen her2 - Velg delområde fra rullegardinen her1"},null,{"$f":"IF(D17>0,E17,\"\")","v":""}]
[null,null,2,{"$f":"VLOOKUP($N18,Database!$A$2:$R$1463,5,FALSE)","v":0},{"$f":"VLOOKUP($N18,Database!$A$2:$R$1463,6,FALSE)","v":0},{"$f":"VLOOKUP($N18,Database!$A$2:$R$1463,7,FALSE)","v":0},null,"2. Velg konsulentspesialitet (delområde)-",null,null,null,null,"x",{"$f":"$N$2&$N$6&$C$18","v":"1 - Velg område fra rullegardinen her2 - Velg delområde fra rullegardinen her2"},null,""]
[null,null,3,{"$f":"VLOOKUP($N19,Database!$A$2:$R$1463,5,FALSE)","v":0},{"$f":"VLOOKUP($N19,Database!$A$2:$R$1463,6,FALSE)","v":0},{"$f":"VLOOKUP($N19,Database!$A$2:$R$1463,7,FALSE)","v":0},null,"3. Klikk for å sende en e-post til alle avtaleleverandører",null,null,null,null,"x",{"$f":"$N$2&$N$6&$C$19","v":"1 - Velg område fra rullegardinen her2 - Velg delområde fra rullegardinen her3"},null,""]
[null,null,4,{"$f":"VLOOKUP($N20,Database!$A$2:$R$1463,5,FALSE)","v":0},{"$f":"VLOOKUP($N20,Database!$A$2:$R$1463,6,FALSE)","v":0},{"$f":"VLOOKUP($N20,Database!$A$2:$R$1463,7,FALSE)","v":0},null,"4. Legg oppdragsbeskrivelsen som et vedlegg i denne e-posten",null,null,null,null,"x",{"$f":"$N$2&$N$6&$C$20","v":"1 - Velg område fra rullegardinen her2 - Velg delområde fra rullegardinen her4"},null,""]
[null,null,5,{"$f":"VLOOKUP($N21,Database!$A$2:$R$1463,5,FALSE)","v":0},{"$f":"VLOOKUP($N21,Database!$A$2:$R$1463,6,FALSE)","v":0},{"$f":"VLOOKUP($N21,Database!$A$2:$R$1463,7,FALSE)","v":0},null,"5. Send",null,null,null,null,"x",{"$f":"$N$2&$N$6&$C$21","v":"1 - Velg område fra rullegardinen her2 - Velg delområde fra rullegardinen her5"},null,""]
[null,null,6,{"$f":"VLOOKUP($N22,Database!$A$2:$R$1463,5,FALSE)","v":0},{"$f":"VLOOKUP($N22,Database!$A$2:$R$1463,6,FALSE)","v":0},{"$f":"VLOOKUP($N22,Database!$A$2:$R$1463,7,FALSE)","v":0},null,null,null,null,null,null,"x",{"$f":"$N$2&$N$6&$C$22","v":"1 - Velg område fra rullegardinen her2 - Velg delområde fra rullegardinen her6"},null,""]
[null,null,7,{"$f":"VLOOKUP($N23,Database!$A$2:$R$1463,5,FALSE)","v":0},{"$f":"VLOOKUP($N23,Database!$A$2:$R$1463,6,FALSE)","v":0},{"$f":"VLOOKUP($N23,Database!$A$2:$R$1463,7,FALSE)","v":0},null,null,null,null,null,null,"x",{"$f":"$N$2&$N$6&$C$23","v":"1 - Velg område fra rullegardinen her2 - Velg delområde fra rullegardinen her7"},null,""]
[null,null,8,{"$f":"VLOOKUP($N24,Database!$A$2:$R$1463,5,FALSE)","v":0},{"$f":"VLOOKUP($N24,Database!$A$2:$R$1463,6,FALSE)","v":0},{"$f":"VLOOKUP($N24,Database!$A$2:$R$1463,7,FALSE)","v":0},null,null,null,null,null,null,"x",{"$f":"$N$2&$N$6&$C$24","v":"1 - Velg område fra rullegardinen her2 - Velg delområde fra rullegardinen her8"},null,""]
[null,null,9,{"$f":"VLOOKUP($N25,Database!$A$2:$R$1463,5,FALSE)","v":0},{"$f":"VLOOKUP($N25,Database!$A$2:$R$1463,6,FALSE)","v":0},{"$f":"VLOOKUP($N25,Database!$A$2:$R$1463,7,FALSE)","v":0},null,null,null,null,null,null,"x",{"$f":"$N$2&$N$6&$C$25","v":"1 - Velg område fra rullegardinen her2 - Velg delområde fra rullegardinen her9"},null,""]
[null,null,10,{"$f":"VLOOKUP($N26,Database!$A$2:$R$1463,5,FALSE)","v":0},{"$f":"VLOOKUP($N26,Database!$A$2:$R$1463,6,FALSE)","v":0},{"$f":"VLOOKUP($N26,Database!$A$2:$R$1463,7,FALSE)","v":0},null,null,null,null,null,null,"x",{"$f":"$N$2&$N$6&$C$26","v":"1 - Velg område fra rullegardinen her2 - Velg delområde fra rullegardinen her10"},null,""]
[]
[null,null,null,null,null,null,null,null,null,null,null,null,null,null,null,null,{"$f":"P17&\";\"&P18&\";\"&P19&\";\"&P20&\";\"&P21&\";\"&P22&\";\"&P23&\";\"&P24&\";\"&P25&\";\"&P26","v":";;;;;;;;;"}]

{"sheet":"Database","index":1,"n_rows":1463,"n_cols":18,"rows_kept":1463,"cut":false,"hidden":true,"merged":[]}
["Kode","Område","Delområde","Rangering","Leverandør","E-post","Telefon","Kolonne3","Kolonne4","Kolonne5","Kolonne6","Kolonne7","Kolonne8","Kolonne9","Kolonne10","Kolonne11","Kolonne12","Kolonne13"]
[{"$f":"Database!$B2&Database!$C2&Database!$D2","v":"Nord RHFDelkontrakt A: Strategi - og organisasjonsutvikling - Alle RHF1"},"Nord RHF","Delkontrakt A: Strategi - og organisasjonsutvikling - Alle RHF",1,"Advansia AS","advansia@advansia.no",40639194]
[{"$f":"Database!$B3&Database!$C3&Database!$D3","v":"Nord RHFDelkontrakt A: Strategi - og organisasjonsutvikling - Alle RHF2"},"Nord RHF","Delkontrakt A: Strategi - og organisasjonsutvikling - Alle RHF",2,"Azets Consulting AS","anbud@azetsconsulting.no",95260687]
[{"$f":"Database!$B4&Database!$C4&Database!$D4","v":"Nord RHFDelkontrakt A: Strategi - og organisasjonsutvikling - Alle RHF3"},"Nord RHF","Delkontrakt A: Strategi - og organisasjonsutvikling - Alle RHF",3,"Bouvet Norge AS","Sykehusinnkjop2024strategi@bouvet.no",91361889]
[{"$f":"Database!$B5&Database!$C5&Database!$D5","v":"Nord RHFDelkontrakt A: Strategi - og organisasjonsutvikling - Alle RHF4"},"Nord RHF","Delkontrakt A: Strategi - og organisasjonsutvikling - Alle RHF",4,"Capgemini AS","cginvent.tilbud.no@capgemini.com",41521570]
[{"$f":"Database!$B6&Database!$C6&Database!$D6","v":"Nord RHFDelkontrakt A: Strategi - og organisasjonsutvikling - Alle RHF5"},"Nord RHF","Delkontrakt A: Strategi - og organisasjonsutvikling - Alle RHF",5,"Deloitte AS","noanbud@deloitte.no",90791885]
[{"$f":"Database!$B7&Database!$C7&Database!$D7","v":"Nord RHFDelkontrakt A: Strategi - og organisasjonsutvikling - Alle RHF6"},"Nord RHF","Delkontrakt A: Strategi - og organisasjonsutvikling - Alle RHF",6,"Ernst & Young AS","offentlige.anskaffelser@no.ey.com",90195907]
[{"$f":"Database!$B8&Database!$C8&Database!$D8","v":"Nord RHFDelkontrakt A: Strategi - og organisasjonsutvikling - Alle RHF7"},"Nord RHF","Delkontrakt A: Strategi - og organisasjonsutvikling - Alle RHF",7,"KPMG AS","helse@kpmg.no",40637814]
[{"$f":"Database!$B9&Database!$C9&Database!$D9","v":"Nord RHFDelkontrakt A: Strategi - og organisasjonsutvikling - Alle RHF8"},"Nord RHF","Delkontrakt A: Strategi - og organisasjonsutvikling - Alle RHF",8,"PA Consulting Group AS","grete.kvernland-berg@paconsulting.com",99250356]
[{"$f":"Database!$B10&Database!$C10&Database!$D10","v":"Nord RHFDelkontrakt A: Strategi - og organisasjonsutvikling - Alle RHF9"},"Nord RHF","Delkontrakt A: Strategi - og organisasjonsutvikling - Alle RHF",9,"PricewaterhouseCoopers AS","no_admin.helse@pwc.com",95261303]
[{"$f":"Database!$B11&Database!$C11&Database!$D11","v":"Nord RHFDelkontrakt A: Strategi - og organisasjonsutvikling - Alle RHF10"},"Nord RHF","Delkontrakt A: Strategi - og organisasjonsutvikling - Alle RHF",10,"Sopra Steria AS","helse@soprasteria.com",93428425]
[{"$f":"Database!$B12&Database!$C12&Database!$D12","v":""}]
[{"$f":"Database!$B13&Database!$C13&Database!$D13","v":"Nord RHFDelkontrakt B1: Leder - og ledelsesutvikling - Helse Nord RHF1"},"Nord RHF","Delkontrakt B1: Leder - og ledelsesutvikling - Helse Nord RHF",1,"A-2 Norge AS","utlysninger@a-2.no",90986467]
[{"$f":"Database!$B14&Database!$C14&Database!$D14","v":"Nord RHFDelkontrakt B1: Leder - og ledelsesutvikling - Helse Nord RHF2"},"Nord RHF","Delkontrakt B1: Leder - og ledelsesutvikling - Helse Nord RHF",2,"Advansia AS","advansia@advansia.no",40639194]
[{"$f":"Database!$B15&Database!$C15&Database!$D15","v":"Nord RHFDelkontrakt B1: Leder - og ledelsesutvikling - Helse Nord RHF3"},"Nord RHF","Delkontrakt B1: Leder - og ledelsesutvikling - Helse Nord RHF",3,"AFF-Stiftelsen administrativt forskningsfond","Firmapost@aff.no",99553187]
[{"$f":"Database!$B16&Database!$C16&Database!$D16","v":"Nord RHFDelkontrakt B1: Leder - og ledelsesutvikling - Helse Nord RHF4"},"Nord RHF","Delkontrakt B1: Leder - og ledelsesutvikling - Helse Nord RHF",4,"Arvadus AS","post@arvadus.no",92674447]
[{"$f":"Database!$B17&Database!$C17&Database!$D17","v":"Nord RHFDelkontrakt B1: Leder - og ledelsesutvikling - Helse Nord RHF5"},"Nord RHF","Delkontrakt B1: Leder - og ledelsesutvikling - Helse Nord RHF",5,"Assessit AS","sentralbord@assessit.no",95480649]
[{"$f":"Database!$B18&Database!$C18&Database!$D18","v":"Nord RHFDelkontrakt B1: Leder - og ledelsesutvikling - Helse Nord RHF6"},"Nord RHF","Delkontrakt B1: Leder - og ledelsesutvikling - Helse Nord RHF",6,"Azets Consulting AS","anbud@azetsconsulting.no",95260687]
[{"$f":"Database!$B19&Database!$C19&Database!$D19","v":"Nord RHFDelkontrakt B1: Leder - og ledelsesutvikling - Helse Nord RHF7"},"Nord RHF","Delkontrakt B1: Leder - og ledelsesutvikling - Helse Nord RHF",7,"Ernst & Young AS","offentlige.anskaffelser@no.ey.com",90195907]
[{"$f":"Database!$B20&Database!$C20&Database!$D20","v":"Nord RHFDelkontrakt B1: Leder - og ledelsesutvikling - Helse Nord RHF8"},"Nord RHF","Delkontrakt B1: Leder - og ledelsesutvikling - Helse Nord RHF",8,"Moment organisasjon og ledelse","post@moment.consulting",91689161]
[{"$f":"Database!$B21&Database!$C21&Database!$D21","v":"Nord RHFDelkontrakt B1: Leder - og ledelsesutvikling - Helse Nord RHF9"},"Nord RHF","Delkontrakt B1: Leder - og ledelsesutvikling - Helse Nord RHF",9,"PricewaterhouseCoopers AS","no_admin.helse@pwc.com",95261303]
[{"$f":"Database!$B22&Database!$C22&Database!$D22","v":"Nord RHFDelkontrakt B1: Leder - og ledelsesutvikling - Helse Nord RHF10"},"Nord RHF","Delkontrakt B1: Leder - og ledelsesutvikling - Helse Nord RHF",10,"Sirius Act AS","christian@siriusact.no",99098647]
[{"$f":"Database!$B23&Database!$C23&Database!$D23","v":""}]
[{"$f":"Database!$B24&Database!$C24&Database!$D24","v":""}]
[{"$f":"Database!$B25&Database!$C25&Database!$D25","v":""}]
[{"$f":"Database!$B26&Database!$C26&Database!$D26","v":"Midt-Norge RHFDelkontrakt A: Strategi - og organisasjonsutvikling - Alle RHF1"},"Midt-Norge RHF","Delkontrakt A: Strategi - og organisasjonsutvikling - Alle RHF",1,"Advansia AS","advansia@advansia.no"]
[{"$f":"Database!$B27&Database!$C27&Database!$D27","v":"Midt-Norge RHFDelkontrakt A: Strategi - og organisasjonsutvikling - Alle RHF2"},"Midt-Norge RHF","Delkontrakt A: Strategi - og organisasjonsutvikling - Alle RHF",2,"Azets Consulting AS","anbud@azetsconsulting.no"]
[{"$f":"Database!$B28&Database!$C28&Database!$D28","v":"Midt-Norge RHFDelkontrakt A: Strategi - og organisasjonsutvikling - Alle RHF3"},"Midt-Norge RHF","Delkontrakt A: Strategi - og organisasjonsutvikling - Alle RHF",3,"Bouvet Norge AS","Sykehusinnkjop2024strategi@bouvet.no"]
[{"$f":"Database!$B29&Database!$C29&Database!$D29","v":"Midt-Norge RHFDelkontrakt A: Strategi - og organisasjonsutvikling - Alle RHF4"},"Midt-Norge RHF","Delkontrakt A: Strategi - og organisasjonsutvikling - Alle RHF",4,"Capgemini AS","cginvent.tilbud.no@capgemini.com"]
[{"$f":"Database!$B30&Database!$C30&Database!$D30","v":"Midt-Norge RHFDelkontrakt A: Strategi - og organisasjonsutvikling - Alle RHF5"},"Midt-Norge RHF","Delkontrakt A: Strategi - og organisasjonsutvikling - Alle RHF",5,"Deloitte AS","noanbud@deloitte.no"]
[{"$f":"Database!$B31&Database!$C31&Database!$D31","v":"Midt-Norge RHFDelkontrakt A: Strategi - og organisasjonsutvikling - Alle RHF6"},"Midt-Norge RHF","Delkontrakt A: Strategi - og organisasjonsutvikling - Alle RHF",6,"Ernst & Young AS","offentlige.anskaffelser@no.ey.com"]
[{"$f":"Database!$B32&Database!$C32&Database!$D32","v":"Midt-Norge RHFDelkontrakt A: Strategi - og organisasjonsutvikling - Alle RHF7"},"Midt-Norge RHF","Delkontrakt A: Strategi - og organisasjonsutvikling - Alle RHF",7,"KPMG AS","helse@kpmg.no"]
[{"$f":"Database!$B33&Database!$C33&Database!$D33","v":"Midt-Norge RHFDelkontrakt A: Strategi - og organisasjonsutvikling - Alle RHF8"},"Midt-Norge RHF","Delkontrakt A: Strategi - og organisasjonsutvikling - Alle RHF",8,"PA Consulting Group AS","grete.kvernland-berg@paconsulting.com"]
[{"$f":"Database!$B34&Database!$C34&Database!$D34","v":"Midt-Norge RHFDelkontrakt A: Strategi - og organisasjonsutvikling - Alle RHF9"},"Midt-Norge RHF","Delkontrakt A: Strategi - og organisasjonsutvikling - Alle RHF",9,"PricewaterhouseCoopers AS","no_admin.helse@pwc.com"]
[{"$f":"Database!$B35&Database!$C35&Database!$D35","v":"Midt-Norge RHFDelkontrakt A: Strategi - og organisasjonsutvikling - Alle RHF10"},"Midt-Norge RHF","Delkontrakt A: Strategi - og organisasjonsutvikling - Alle RHF",10,"Sopra Steria AS","helse@soprasteria.com"]
[{"$f":"Database!$B36&Database!$C36&Database!$D36","v":""}]
[{"$f":"Database!$B37&Database!$C37&Database!$D37","v":"Midt-Norge RHFDelkontrakt B2: Leder - og ledelsesutvikling - Helse Midt-Norge RHF1"},"Midt-Norge RHF","Delkontrakt B2: Leder - og ledelsesutvikling - Helse Midt-Norge RHF",1,"AFF-Stiftelsen administrativt forskningsfond","Firmapost@aff.no",99553187]
[{"$f":"Database!$B38&Database!$C38&Database!$D38","v":"Midt-Norge RHFDelkontrakt B2: Leder - og ledelsesutvikling - Helse Midt-Norge RHF2"},"Midt-Norge RHF","Delkontrakt B2: Leder - og ledelsesutvikling - Helse Midt-Norge RHF",2,"Assessit AS","sentralbord@assessit.no",95480649]
[{"$f":"Database!$B39&Database!$C39&Database!$D39","v":"Midt-Norge RHFDelkontrakt B2: Leder - og ledelsesutvikling - Helse Midt-Norge RHF3"},"Midt-Norge RHF","Delkontrakt B2: Leder - og ledelsesutvikling - Helse Midt-Norge RHF",3,"Azets Consulting AS","anbud@azetsconsulting.no",95260687]
[{"$f":"Database!$B40&Database!$C40&Database!$D40","v":"Midt-Norge RHFDelkontrakt B2: Leder - og ledelsesutvikling - Helse Midt-Norge RHF4"},"Midt-Norge RHF","Delkontrakt B2: Leder - og ledelsesutvikling - Helse Midt-Norge RHF",4,"Ernst & Young AS","offentlige.anskaffelser@no.ey.com",90195907]
[{"$f":"Database!$B41&Database!$C41&Database!$D41","v":"Midt-Norge RHFDelkontrakt B2: Leder - og ledelsesutvikling - Helse Midt-Norge RHF5"},"Midt-Norge RHF","Delkontrakt B2: Leder - og ledelsesutvikling - Helse Midt-Norge RHF",5,"Moment organisasjon og ledelse","post@moment.consulting",91689161]
[{"$f":"Database!$B42&Database!$C42&Database!$D42","v":"Midt-Norge RHFDelkontrakt B2: Leder - og ledelsesutvikling - Helse Midt-Norge RHF6"},"Midt-Norge RHF","Delkontrakt B2: Leder - og ledelsesutvikling - Helse Midt-Norge RHF",6]
[{"$f":"Database!$B43&Database!$C43&Database!$D43","v":"Midt-Norge RHFDelkontrakt B2: Leder - og ledelsesutvikling - Helse Midt-Norge RHF7"},"Midt-Norge RHF","Delkontrakt B2: Leder - og ledelsesutvikling - Helse Midt-Norge RHF",7]
[{"$f":"Database!$B44&Database!$C44&Database!$D44","v":"Midt-Norge RHFDelkontrakt B2: Leder - og ledelsesutvikling - Helse Midt-Norge RHF8"},"Midt-Norge RHF","Delkontrakt B2: Leder - og ledelsesutvikling - Helse Midt-Norge RHF",8]
[{"$f":"Database!$B45&Database!$C45&Database!$D45","v":"Midt-Norge RHFDelkontrakt B2: Leder - og ledelsesutvikling - Helse Midt-Norge RHF9"},"Midt-Norge RHF","Delkontrakt B2: Leder - og ledelsesutvikling - Helse Midt-Norge RHF",9]
[{"$f":"Database!$B46&Database!$C46&Database!$D46","v":"Midt-Norge RHFDelkontrakt B2: Leder - og ledelsesutvikling - Helse Midt-Norge RHF10"},"Midt-Norge RHF","Delkontrakt B2: Leder - og ledelsesutvikling - Helse Midt-Norge RHF",10]
[{"$f":"Database!$B47&Database!$C47&Database!$D47","v":""}]
[{"$f":"Database!$B48&Database!$C48&Database!$D48","v":""}]
[]
[{"$f":"Database!$B50&Database!$C50&Database!$D50","v":"Vest RHFDelkontrakt A: Strategi - og organisasjonsutvikling - Alle RHF1"},"Vest RHF","Delkontrakt A: Strategi - og organisasjonsutvikling - Alle RHF",1,"Advansia AS","advansia@advansia.no"]
[{"$f":"Database!$B51&Database!$C51&Database!$D51","v":"Vest RHFDelkontrakt A: Strategi - og organisasjonsutvikling - Alle RHF2"},"Vest RHF","Delkontrakt A: Strategi - og organisasjonsutvikling - Alle RHF",2,"Azets Consulting AS","anbud@azetsconsulting.no"]
[{"$f":"Database!$B52&Database!$C52&Database!$D52","v":"Vest RHFDelkontrakt A: Strategi - og organisasjonsutvikling - Alle RHF3"},"Vest RHF","Delkontrakt A: Strategi - og organisasjonsutvikling - Alle RHF",3,"Bouvet Norge AS","Sykehusinnkjop2024strategi@bouvet.no"]
[{"$f":"Database!$B53&Database!$C53&Database!$D53","v":"Vest RHFDelkontrakt A: Strategi - og organisasjonsutvikling - Alle RHF4"},"Vest RHF","Delkontrakt A: Strategi - og organisasjonsutvikling - Alle RHF",4,"Capgemini AS","cginvent.tilbud.no@capgemini.com"]
[{"$f":"Database!$B54&Database!$C54&Database!$D54","v":"Vest RHFDelkontrakt A: Strategi - og organisasjonsutvikling - Alle RHF5"},"Vest RHF","Delkontrakt A: Strategi - og organisasjonsutvikling - Alle RHF",5,"Deloitte AS","noanbud@deloitte.no"]
[{"$f":"Database!$B55&Database!$C55&Database!$D55","v":"Vest RHFDelkontrakt A: Strategi - og organisasjonsutvikling - Alle RHF6"},"Vest RHF","Delkontrakt A: Strategi - og organisasjonsutvikling - Alle RHF",6,"Ernst & Young AS","offentlige.anskaffelser@no.ey.com"]
[{"$f":"Database!$B56&Database!$C56&Database!$D56","v":"Vest RHFDelkontrakt A: Strategi - og organisasjonsutvikling - Alle RHF7"},"Vest RHF","Delkontrakt A: Strategi - og organisasjonsutvikling - Alle RHF",7,"KPMG AS","helse@kpmg.no"]
[{"$f":"Database!$B57&Database!$C57&Database!$D57","v":"Vest RHFDelkontrakt A: Strategi - og organisasjonsutvikling - Alle RHF8"},"Vest RHF","Delkontrakt A: Strategi - og organisasjonsutvikling - Alle RHF",8,"PA Consulting Group AS","grete.kvernland-berg@paconsulting.com"]
[{"$f":"Database!$B58&Database!$C58&Database!$D58","v":"Vest RHFDelkontrakt A: Strategi - og organisasjonsutvikling - Alle RHF9"},"Vest RHF","Delkontrakt A: Strategi - og organisasjonsutvikling - Alle RHF",9,"PricewaterhouseCoopers AS","no_admin.helse@pwc.com"]
[{"$f":"Database!$B59&Database!$C59&Database!$D59","v":"Vest RHFDelkontrakt A: Strategi - og organisasjonsutvikling - Alle RHF10"},"Vest RHF","Delkontrakt A: Strategi - og organisasjonsutvikling - Alle RHF",10,"Sopra Steria AS","helse@soprasteria.com"]
[]
[{"$f":"Database!$B61&Database!$C61&Database!$D61","v":"Vest RHFDelkontrakt B3: Leder - og ledelsesutvikling - Helse Vest RHF1"},"Vest RHF","Delkontrakt B3: Leder - og ledelsesutvikling - Helse Vest RHF",1,"AFF-Stiftelsen administrativt forskningsfond","Firmapost@aff.no",99553187]
[{"$f":"Database!$B62&Database!$C62&Database!$D62","v":"Vest RHFDelkontrakt B3: Leder - og ledelsesutvikling - Helse Vest RHF2"},"Vest RHF","Delkontrakt B3: Leder - og ledelsesutvikling - Helse Vest RHF",2,"Assessit AS","sentralbord@assessit.no",95480649]
[{"$f":"Database!$B63&Database!$C63&Database!$D63","v":"Vest RHFDelkontrakt B3: Leder - og ledelsesutvikling - Helse Vest RHF3"},"Vest RHF","Delkontrakt B3: Leder - og ledelsesutvikling - Helse Vest RHF",3,"Azets Consulting AS","anbud@azetsconsulting.no",95260687]
[{"$f":"Database!$B64&Database!$C64&Database!$D64","v":"Vest RHFDelkontrakt B3: Leder - og ledelsesutvikling - Helse Vest RHF4"},"Vest RHF","Delkontrakt B3: Leder - og ledelsesutvikling - Helse Vest RHF",4,"Ernst & Young AS","offentlige.anskaffelser@no.ey.com",90195907]
[{"$f":"Database!$B65&Database!$C65&Database!$D65","v":"Vest RHFDelkontrakt B3: Leder - og ledelsesutvikling - Helse Vest RHF5"},"Vest RHF","Delkontrakt B3: Leder - og ledelsesutvikling - Helse Vest RHF",5,"Moment organisasjon og ledelse","post@moment.consulting",91689161]
[{"$f":"Database!$B66&Database!$C66&Database!$D66","v":"Vest RHFDelkontrakt B3: Leder - og ledelsesutvikling - Helse Vest RHF6"},"Vest RHF","Delkontrakt B3: Leder - og ledelsesutvikling - Helse Vest RHF",6]
[{"$f":"Database!$B67&Database!$C67&Database!$D67","v":"Vest RHFDelkontrakt B3: Leder - og ledelsesutvikling - Helse Vest RHF7"},"Vest RHF","Delkontrakt B3: Leder - og ledelsesutvikling - Helse Vest RHF",7]
[{"$f":"Database!$B68&Database!$C68&Database!$D68","v":"Vest RHFDelkontrakt B3: Leder - og ledelsesutvikling - Helse Vest RHF8"},"Vest RHF","Delkontrakt B3: Leder - og ledelsesutvikling - Helse Vest RHF",8]
[{"$f":"Database!$B69&Database!$C69&Database!$D69","v":"Vest RHFDelkontrakt B3: Leder - og ledelsesutvikling - Helse Vest RHF9"},"Vest RHF","Delkontrakt B3: Leder - og ledelsesutvikling - Helse Vest RHF",9]
[{"$f":"Database!$B70&Database!$C70&Database!$D70","v":"Vest RHFDelkontrakt B3: Leder - og ledelsesutvikling - Helse Vest RHF10"},"Vest RHF","Delkontrakt B3: Leder - og ledelsesutvikling - Helse Vest RHF",10]
[]
[]
[]
[{"$f":"Database!$B74&Database!$C74&Database!$D74","v":"Sør-Øst RHFDelkontrakt A: Strategi - og organisasjonsutvikling - Alle RHF1"},"Sør-Øst RHF","Delkontrakt A: Strategi - og organisasjonsutvikling - Alle RHF",1,"Advansia AS","advansia@advansia.no"]
[{"$f":"Database!$B75&Database!$C75&Database!$D75","v":"Sør-Øst RHFDelkontrakt A: Strategi - og organisasjonsutvikling - Alle RHF2"},"Sør-Øst RHF","Delkontrakt A: Strategi - og organisasjonsutvikling - Alle RHF",2,"Azets Consulting AS","anbud@azetsconsulting.no"]
[{"$f":"Database!$B76&Database!$C76&Database!$D76","v":"Sør-Øst RHFDelkontrakt A: Strategi - og organisasjonsutvikling - Alle RHF3"},"Sør-Øst RHF","Delkontrakt A: Strategi - og organisasjonsutvikling - Alle RHF",3,"Bouvet Norge AS","Sykehusinnkjop2024strategi@bouvet.no"]
[{"$f":"Database!$B77&Database!$C77&Database!$D77","v":"Sør-Øst RHFDelkontrakt A: Strategi - og organisasjonsutvikling - Alle RHF4"},"Sør-Øst RHF","Delkontrakt A: Strategi - og organisasjonsutvikling - Alle RHF",4,"Capgemini AS","cginvent.tilbud.no@capgemini.com"]
[{"$f":"Database!$B78&Database!$C78&Database!$D78","v":"Sør-Øst RHFDelkontrakt A: Strategi - og organisasjonsutvikling - Alle RHF5"},"Sør-Øst RHF","Delkontrakt A: Strategi - og organisasjonsutvikling - Alle RHF",5,"Deloitte AS","noanbud@deloitte.no"]
[{"$f":"Database!$B79&Database!$C79&Database!$D79","v":"Sør-Øst RHFDelkontrakt A: Strategi - og organisasjonsutvikling - Alle RHF6"},"Sør-Øst RHF","Delkontrakt A: Strategi - og organisasjonsutvikling - Alle RHF",6,"Ernst & Young AS","offentlige.anskaffelser@no.ey.com"]
[{"$f":"Database!$B80&Database!$C80&Database!$D80","v":"Sør-Øst RHFDelkontrakt A: Strategi - og organisasjonsutvikling - Alle RHF7"},"Sør-Øst RHF","Delkontrakt A: Strategi - og organisasjonsutvikling - Alle RHF",7,"KPMG AS","helse@kpmg.no"]
[{"$f":"Database!$B81&Database!$C81&Database!$D81","v":"Sør-Øst RHFDelkontrakt A: Strategi - og organisasjonsutvikling - Alle RHF8"},"Sør-Øst RHF","Delkontrakt A: Strategi - og organisasjonsutvikling - Alle RHF",8,"PA Consulting Group AS","grete.kvernland-berg@paconsulting.com"]
[{"$f":"Database!$B82&Database!$C82&Database!$D82","v":"Sør-Øst RHFDelkontrakt A: Strategi - og organisasjonsutvikling - Alle RHF9"},"Sør-Øst RHF","Delkontrakt A: Strategi - og organisasjonsutvikling - Alle RHF",9,"PricewaterhouseCoopers AS","no_admin.helse@pwc.com"]
[{"$f":"Database!$B83&Database!$C83&Database!$D83","v":"Sør-Øst RHFDelkontrakt A: Strategi - og organisasjonsutvikling - Alle RHF10"},"Sør-Øst RHF","Delkontrakt A: Strategi - og organisasjonsutvikling - Alle RHF",10,"Sopra Steria AS","helse@soprasteria.com"]
[]
[{"$f":"Database!$B85&Database!$C85&Database!$D85","v":"Sør-Øst RHFDelkontrakt B4: Leder - og ledelsesutvikling - Helse Sør-Øst RHF1"},"Sør-Øst RHF","Delkontrakt B4: Leder - og ledelsesutvikling - Helse Sør-Øst RHF",1,"AFF-Stiftelsen administrativt forskningsfond","Firmapost@aff.no",99553187]
[{"$f":"Database!$B86&Database!$C86&Database!$D86","v":"Sør-Øst RHFDelkontrakt B4: Leder - og ledelsesutvikling - Helse Sør-Øst RHF2"},"Sør-Øst RHF","Delkontrakt B4: Leder - og ledelsesutvikling - Helse Sør-Øst RHF",2,"Assessit AS","sentralbord@assessit.no",95480649]
[{"$f":"Database!$B87&Database!$C87&Database!$D87","v":"Sør-Øst RHFDelkontrakt B4: Leder - og ledelsesutvikling - Helse Sør-Øst RHF3"},"Sør-Øst RHF","Delkontrakt B4: Leder - og ledelsesutvikling - Helse Sør-Øst RHF",3,"Azets Consulting AS","anbud@azetsconsulting.no",95260687]
[{"$f":"Database!$B88&Database!$C88&Database!$D88","v":"Sør-Øst RHFDelkontrakt B4: Leder - og ledelsesutvikling - Helse Sør-Øst RHF4"},"Sør-Øst RHF","Delkontrakt B4: Leder - og ledelsesutvikling - Helse Sør-Øst RHF",4,"Ernst & Young AS","offentlige.anskaffelser@no.ey.com",90195907]
[{"$f":"Database!$B89&Database!$C89&Database!$D89","v":"Sør-Øst RHFDelkontrakt B4: Leder - og ledelsesutvikling - Helse Sør-Øst RHF5"},"Sør-Øst RHF","Delkontrakt B4: Leder - og ledelsesutvikling - Helse Sør-Øst RHF",5,"Moment organisasjon og ledelse","post@moment.consulting",91689161]
[{"$f":"Database!$B90&Database!$C90&Database!$D90","v":"Sør-Øst RHFDelkontrakt B4: Leder - og ledelsesutvikling - Helse Sør-Øst RHF6"},"Sør-Øst RHF","Delkontrakt B4: Leder - og ledelsesutvikling - Helse Sør-Øst RHF",6]
[{"$f":"Database!$B91&Database!$C91&Database!$D91","v":"Sør-Øst RHFDelkontrakt B4: Leder - og ledelsesutvikling - Helse Sør-Øst RHF7"},"Sør-Øst RHF","Delkontrakt B4: Leder - og ledelsesutvikling - Helse Sør-Øst RHF",7]
[{"$f":"Database!$B92&Database!$C92&Database!$D92","v":"Sør-Øst RHFDelkontrakt B4: Leder - og ledelsesutvikling - Helse Sør-Øst RHF8"},"Sør-Øst RHF","Delkontrakt B4: Leder - og ledelsesutvikling - Helse Sør-Øst RHF",8]
[{"$f":"Database!$B93&Database!$C93&Database!$D93","v":"Sør-Øst RHFDelkontrakt B4: Leder - og ledelsesutvikling - Helse Sør-Øst RHF9"},"Sør-Øst RHF","Delkontrakt B4: Leder - og ledelsesutvikling - Helse Sør-Øst RHF",9]
[{"$f":"Database!$B94&Database!$C94&Database!$D94","v":"Sør-Øst RHFDelkontrakt B4: Leder - og ledelsesutvikling - Helse Sør-Øst RHF10"},"Sør-Øst RHF","Delkontrakt B4: Leder - og ledelsesutvikling - Helse Sør-Øst RHF",10]
[]
[]
[]
[]
[]
[]
[]
[]
[{"$f":"Database!$B103&Database!$C103&Database!$D103","v":"1 - Velg område fra rullegardinen herDelkontrakt A: Strategi - og organisasjonsutvikling - Alle RHF1"},"1 - Velg område fra rullegardinen her","Delkontrakt A: Strategi - og organisasjonsutvikling - Alle RHF",1]
[{"$f":"Database!$B104&Database!$C104&Database!$D104","v":"1 - Velg område fra rullegardinen herDelkontrakt A: Strategi - og organisasjonsutvikling - Alle RHF2"},"1 - Velg område fra rullegardinen her","Delkontrakt A: Strategi - og organisasjonsutvikling - Alle RHF",2]
[{"$f":"Database!$B105&Database!$C105&Database!$D105","v":"1 - Velg område fra rullegardinen herDelkontrakt A: Strategi - og organisasjonsutvikling - Alle RHF3"},"1 - Velg område fra rullegardinen her","Delkontrakt A: Strategi - og organisasjonsutvikling - Alle RHF",3]
[{"$f":"Database!$B106&Database!$C106&Database!$D106","v":"1 - Velg område fra rullegardinen herDelkontrakt A: Strategi - og organisasjonsutvikling - Alle RHF4"},"1 - Velg område fra rullegardinen her","Delkontrakt A: Strategi - og organisasjonsutvikling - Alle RHF",4]
[{"$f":"Database!$B107&Database!$C107&Database!$D107","v":"1 - Velg område fra rullegardinen herDelkontrakt A: Strategi - og organisasjonsutvikling - Alle RHF5"},"1 - Velg område fra rullegardinen her","Delkontrakt A: Strategi - og organisasjonsutvikling - Alle RHF",5]
[{"$f":"Database!$B108&Database!$C108&Database!$D108","v":"1 - Velg område fra rullegardinen herDelkontrakt A: Strategi - og organisasjonsutvikling - Alle RHF6"},"1 - Velg område fra rullegardinen her","Delkontrakt A: Strategi - og organisasjonsutvikling - Alle RHF",6]
[{"$f":"Database!$B109&Database!$C109&Database!$D109","v":"1 - Velg område fra rullegardinen herDelkontrakt A: Strategi - og organisasjonsutvikling - Alle RHF7"},"1 - Velg område fra rullegardinen her","Delkontrakt A: Strategi - og organisasjonsutvikling - Alle RHF",7]
[{"$f":"Database!$B110&Database!$C110&Database!$D110","v":"1 - Velg område fra rullegardinen herDelkontrakt A: Strategi - og organisasjonsutvikling - Alle RHF8"},"1 - Velg område fra rullegardinen her","Delkontrakt A: Strategi - og organisasjonsutvikling - Alle RHF",8]
[{"$f":"Database!$B111&Database!$C111&Database!$D111","v":"1 - Velg område fra rullegardinen herDelkontrakt A: Strategi - og organisasjonsutvikling - Alle RHF9"},"1 - Velg område fra rullegardinen her","Delkontrakt A: Strategi - og organisasjonsutvikling - Alle RHF",9]
[{"$f":"Database!$B112&Database!$C112&Database!$D112","v":"1 - Velg område fra rullegardinen herDelkontrakt A: Strategi - og organisasjonsutvikling - Alle RHF10"},"1 - Velg område fra rullegardinen her","Delkontrakt A: Strategi - og organisasjonsutvikling - Alle RHF",10]
[{"$f":"Database!$B113&Database!$C113&Database!$D113","v":""}]
[{"$f":"Database!$B114&Database!$C114&Database!$D114","v":"1 - Velg område fra rullegardinen herDelkontrakt B1: Leder - og ledelsesutvikling - Helse Nord RHF1"},"1 - Velg område fra rullegardinen her","Delkontrakt B1: Leder - og ledelsesutvikling - Helse Nord RHF",1]
[{"$f":"Database!$B115&Database!$C115&Database!$D115","v":"1 - Velg område fra rullegardinen herDelkontrakt B1: Leder - og ledelsesutvikling - Helse Nord RHF2"},"1 - Velg område fra rullegardinen her","Delkontrakt B1: Leder - og ledelsesutvikling - Helse Nord RHF",2]
[{"$f":"Database!$B116&Database!$C116&Database!$D116","v":"1 - Velg område fra rullegardinen herDelkontrakt B1: Leder - og ledelsesutvikling - Helse Nord RHF3"},"1 - Velg område fra rullegardinen her","Delkontrakt B1: Leder - og ledelsesutvikling - Helse Nord RHF",3]
[{"$f":"Database!$B117&Database!$C117&Database!$D117","v":"1 - Velg område fra rullegardinen herDelkontrakt B1: Leder - og ledelsesutvikling - Helse Nord RHF4"},"1 - Velg område fra rullegardinen her","Delkontrakt B1: Leder - og ledelsesutvikling - Helse Nord RHF",4]
[{"$f":"Database!$B118&Database!$C118&Database!$D118","v":"1 - Velg område fra rullegardinen herDelkontrakt B1: Leder - og ledelsesutvikling - Helse Nord RHF5"},"1 - Velg område fra rullegardinen her","Delkontrakt B1: Leder - og ledelsesutvikling - Helse Nord RHF",5]
[{"$f":"Database!$B119&Database!$C119&Database!$D119","v":"1 - Velg område fra rullegardinen herDelkontrakt B1: Leder - og ledelsesutvikling - Helse Nord RHF6"},"1 - Velg område fra rullegardinen her","Delkontrakt B1: Leder - og ledelsesutvikling - Helse Nord RHF",6]
[{"$f":"Database!$B120&Database!$C120&Database!$D120","v":"1 - Velg område fra rullegardinen herDelkontrakt B1: Leder - og ledelsesutvikling - Helse Nord RHF7"},"1 - Velg område fra rullegardinen her","Delkontrakt B1: Leder - og ledelsesutvikling - Helse Nord RHF",7]
[{"$f":"Database!$B121&Database!$C121&Database!$D121","v":"1 - Velg område fra rullegardinen herDelkontrakt B1: Leder - og ledelsesutvikling - Helse Nord RHF8"},"1 - Velg område fra rullegardinen her","Delkontrakt B1: Leder - og ledelsesutvikling - Helse Nord RHF",8]
[{"$f":"Database!$B122&Database!$C122&Database!$D122","v":"1 - Velg område fra rullegardinen herDelkontrakt B1: Leder - og ledelsesutvikling - Helse Nord RHF9"},"1 - Velg område fra rullegardinen her","Delkontrakt B1: Leder - og ledelsesutvikling - Helse Nord RHF",9]
[{"$f":"Database!$B123&Database!$C123&Database!$D123","v":"1 - Velg område fra rullegardinen herDelkontrakt B1: Leder - og ledelsesutvikling - Helse Nord RHF10"},"1 - Velg område fra rullegardinen her","Delkontrakt B1: Leder - og ledelsesutvikling - Helse Nord RHF",10]
[{"$f":"Database!$B124&Database!$C124&Database!$D124","v":""}]
[{"$f":"Database!$B125&Database!$C125&Database!$D125","v":"1 - Velg område fra rullegardinen herDelkontrakt B2: Leder - og ledelsesutvikling - Helse Midt-Norge RHF1"},"1 - Velg område fra rullegardinen her","Delkontrakt B2: Leder - og ledelsesutvikling - Helse Midt-Norge RHF",1]
[{"$f":"Database!$B126&Database!$C126&Database!$D126","v":"1 - Velg område fra rullegardinen herDelkontrakt B2: Leder - og ledelsesutvikling - Helse Midt-Norge RHF2"},"1 - Velg område fra rullegardinen her","Delkontrakt B2: Leder - og ledelsesutvikling - Helse Midt-Norge RHF",2]
[{"$f":"Database!$B127&Database!$C127&Database!$D127","v":"1 - Velg område fra rullegardinen herDelkontrakt B2: Leder - og ledelsesutvikling - Helse Midt-Norge RHF3"},"1 - Velg område fra rullegardinen her","Delkontrakt B2: Leder - og ledelsesutvikling - Helse Midt-Norge RHF",3]
[{"$f":"Database!$B128&Database!$C128&Database!$D128","v":"1 - Velg område fra rullegardinen herDelkontrakt B2: Leder - og ledelsesutvikling - Helse Midt-Norge RHF4"},"1 - Velg område fra rullegardinen her","Delkontrakt B2: Leder - og ledelsesutvikling - Helse Midt-Norge RHF",4]
[{"$f":"Database!$B129&Database!$C129&Database!$D129","v":"1 - Velg område fra rullegardinen herDelkontrakt B2: Leder - og ledelsesutvikling - Helse Midt-Norge RHF5"},"1 - Velg område fra rullegardinen her","Delkontrakt B2: Leder - og ledelsesutvikling - Helse Midt-Norge RHF",5]
[{"$f":"Database!$B130&Database!$C130&Database!$D130","v":"1 - Velg område fra rullegardinen herDelkontrakt B2: Leder - og ledelsesutvikling - Helse Midt-Norge RHF6"},"1 - Velg område fra rullegardinen her","Delkontrakt B2: Leder - og ledelsesutvikling - Helse Midt-Norge RHF",6]
[{"$f":"Database!$B131&Database!$C131&Database!$D131","v":"1 - Velg område fra rullegardinen herDelkontrakt B2: Leder - og ledelsesutvikling - Helse Midt-Norge RHF7"},"1 - Velg område fra rullegardinen her","Delkontrakt B2: Leder - og ledelsesutvikling - Helse Midt-Norge RHF",7]
[{"$f":"Database!$B132&Database!$C132&Database!$D132","v":"1 - Velg område fra rullegardinen herDelkontrakt B2: Leder - og ledelsesutvikling - Helse Midt-Norge RHF8"},"1 - Velg område fra rullegardinen her","Delkontrakt B2: Leder - og ledelsesutvikling - Helse Midt-Norge RHF",8]
[{"$f":"Database!$B133&Database!$C133&Database!$D133","v":"1 - Velg område fra rullegardinen herDelkontrakt B2: Leder - og ledelsesutvikling - Helse Midt-Norge RHF9"},"1 - Velg område fra rullegardinen her","Delkontrakt B2: Leder - og ledelsesutvikling - Helse Midt-Norge RHF",9]
[{"$f":"Database!$B134&Database!$C134&Database!$D134","v":"1 - Velg område fra rullegardinen herDelkontrakt B2: Leder - og ledelsesutvikling - Helse Midt-Norge RHF10"},"1 - Velg område fra rullegardinen her","Delkontrakt B2: Leder - og ledelsesutvikling - Helse Midt-Norge RHF",10]
[{"$f":"Database!$B135&Database!$C135&Database!$D135","v":""}]
[{"$f":"Database!$B136&Database!$C136&Database!$D136","v":"1 - Velg område fra rullegardinen herDelkontrakt B3: Leder - og ledelsesutvikling - Helse Vest RHF1"},"1 - Velg område fra rullegardinen her","Delkontrakt B3: Leder - og ledelsesutvikling - Helse Vest RHF",1]
[{"$f":"Database!$B137&Database!$C137&Database!$D137","v":"1 - Velg område fra rullegardinen herDelkontrakt B3: Leder - og ledelsesutvikling - Helse Vest RHF2"},"1 - Velg område fra rullegardinen her","Delkontrakt B3: Leder - og ledelsesutvikling - Helse Vest RHF",2]
[{"$f":"Database!$B138&Database!$C138&Database!$D138","v":"1 - Velg område fra rullegardinen herDelkontrakt B3: Leder - og ledelsesutvikling - Helse Vest RHF3"},"1 - Velg område fra rullegardinen her","Delkontrakt B3: Leder - og ledelsesutvikling - Helse Vest RHF",3]
[{"$f":"Database!$B139&Database!$C139&Database!$D139","v":"1 - Velg område fra rullegardinen herDelkontrakt B3: Leder - og ledelsesutvikling - Helse Vest RHF4"},"1 - Velg område fra rullegardinen her","Delkontrakt B3: Leder - og ledelsesutvikling - Helse Vest RHF",4]
[{"$f":"Database!$B140&Database!$C140&Database!$D140","v":"1 - Velg område fra rullegardinen herDelkontrakt B3: Leder - og ledelsesutvikling - Helse Vest RHF5"},"1 - Velg område fra rullegardinen her","Delkontrakt B3: Leder - og ledelsesutvikling - Helse Vest RHF",5]
[{"$f":"Database!$B141&Database!$C141&Database!$D141","v":"1 - Velg område fra rullegardinen herDelkontrakt B3: Leder - og ledelsesutvikling - Helse Vest RHF6"},"1 - Velg område fra rullegardinen her","Delkontrakt B3: Leder - og ledelsesutvikling - Helse Vest RHF",6]
[{"$f":"Database!$B142&Database!$C142&Database!$D142","v":"1 - Velg område fra rullegardinen herDelkontrakt B3: Leder - og ledelsesutvikling - Helse Vest RHF7"},"1 - Velg område fra rullegardinen her","Delkontrakt B3: Leder - og ledelsesutvikling - Helse Vest RHF",7]
[{"$f":"Database!$B143&Database!$C143&Database!$D143","v":"1 - Velg område fra rullegardinen herDelkontrakt B3: Leder - og ledelsesutvikling - Helse Vest RHF8"},"1 - Velg område fra rullegardinen her","Delkontrakt B3: Leder - og ledelsesutvikling - Helse Vest RHF",8]
[{"$f":"Database!$B144&Database!$C144&Database!$D144","v":"1 - Velg område fra rullegardinen herDelkontrakt B3: Leder - og ledelsesutvikling - Helse Vest RHF9"},"1 - Velg område fra rullegardinen her","Delkontrakt B3: Leder - og ledelsesutvikling - Helse Vest RHF",9]
[{"$f":"Database!$B145&Database!$C145&Database!$D145","v":"1 - Velg område fra rullegardinen herDelkontrakt B3: Leder - og ledelsesutvikling - Helse Vest RHF10"},"1 - Velg område fra rullegardinen her","Delkontrakt B3: Leder - og ledelsesutvikling - Helse Vest RHF",10]
[{"$f":"Database!$B146&Database!$C146&Database!$D146","v":""}]
[{"$f":"Database!$B147&Database!$C147&Database!$D147","v":"1 - Velg område fra rullegardinen herDelkontrakt B4: Leder - og ledelsesutvikling - Helse Sør-Øst RHF1"},"1 - Velg område fra rullegardinen her","Delkontrakt B4: Leder - og ledelsesutvikling - Helse Sør-Øst RHF",1]
[{"$f":"Database!$B148&Database!$C148&Database!$D148","v":"1 - Velg område fra rullegardinen herDelkontrakt B4: Leder - og ledelsesutvikling - Helse Sør-Øst RHF2"},"1 - Velg område fra rullegardinen her","Delkontrakt B4: Leder - og ledelsesutvikling - Helse Sør-Øst RHF",2]
[{"$f":"Database!$B149&Database!$C149&Database!$D149","v":"1 - Velg område fra rullegardinen herDelkontrakt B4: Leder - og ledelsesutvikling - Helse Sør-Øst RHF3"},"1 - Velg område fra rullegardinen her","Delkontrakt B4: Leder - og ledelsesutvikling - Helse Sør-Øst RHF",3]
[{"$f":"Database!$B150&Database!$C150&Database!$D150","v":"1 - Velg område fra rullegardinen herDelkontrakt B4: Leder - og ledelsesutvikling - Helse Sør-Øst RHF4"},"1 - Velg område fra rullegardinen her","Delkontrakt B4: Leder - og ledelsesutvikling - Helse Sør-Øst RHF",4]
[{"$f":"Database!$B151&Database!$C151&Database!$D151","v":"1 - Velg område fra rullegardinen herDelkontrakt B4: Leder - og ledelsesutvikling - Helse Sør-Øst RHF5"},"1 - Velg område fra rullegardinen her","Delkontrakt B4: Leder - og ledelsesutvikling - Helse Sør-Øst RHF",5]
[{"$f":"Database!$B152&Database!$C152&Database!$D152","v":"1 - Velg område fra rullegardinen herDelkontrakt B4: Leder - og ledelsesutvikling - Helse Sør-Øst RHF6"},"1 - Velg område fra rullegardinen her","Delkontrakt B4: Leder - og ledelsesutvikling - Helse Sør-Øst RHF",6]
[{"$f":"Database!$B153&Database!$C153&Database!$D153","v":"1 - Velg område fra rullegardinen herDelkontrakt B4: Leder - og ledelsesutvikling - Helse Sør-Øst RHF7"},"1 - Velg område fra rullegardinen her","Delkontrakt B4: Leder - og ledelsesutvikling - Helse Sør-Øst RHF",7]
[{"$f":"Database!$B154&Database!$C154&Database!$D154","v":"1 - Velg område fra rullegardinen herDelkontrakt B4: Leder - og ledelsesutvikling - Helse Sør-Øst RHF8"},"1 - Velg område fra rullegardinen her","Delkontrakt B4: Leder - og ledelsesutvikling - Helse Sør-Øst RHF",8]
[{"$f":"Database!$B155&Database!$C155&Database!$D155","v":"1 - Velg område fra rullegardinen herDelkontrakt B4: Leder - og ledelsesutvikling - Helse Sør-Øst RHF9"},"1 - Velg område fra rullegardinen her","Delkontrakt B4: Leder - og ledelsesutvikling - Helse Sør-Øst RHF",9]
[{"$f":"Database!$B156&Database!$C156&Database!$D156","v":"1 - Velg område fra rullegardinen herDelkontrakt B4: Leder - og ledelsesutvikling - Helse Sør-Øst RHF10"},"1 - Velg område fra rullegardinen her","Delkontrakt B4: Leder - og ledelsesutvikling - Helse Sør-Øst RHF",10]
[{"$f":"Database!$B157&Database!$C157&Database!$D157","v":""}]
[]
[]
[{"$f":"Database!$B160&Database!$C160&Database!$D160","v":""}]
[{"$f":"Database!$B161&Database!$C161&Database!$D161","v":""}]
["1 - Velg område fra rullegardinen her2 - Velg delområde fra rullegardinen her1"]
["1 - Velg område fra rullegardinen her2 - Velg delområde fra rullegardinen her2"]
["1 - Velg område fra rullegardinen her2 - Velg delområde fra rullegardinen her3"]
["1 - Velg område fra rullegardinen her2 - Velg delområde fra rullegardinen her4"]
["1 - Velg område fra rullegardinen her2 - Velg delområde fra rullegardinen her5"]
["1 - Velg område fra rullegardinen her2 - Velg delområde fra rullegardinen her6"]
["1 - Velg område fra rullegardinen her2 - Velg delområde fra rullegardinen her7"]
["1 - Velg område fra rullegardinen her2 - Velg delområde fra rullegardinen her8"]
["1 - Velg område fra rullegardinen her2 - Velg delområde fra rullegardinen her9"]
["1 - Velg område fra rullegardinen her2 - Velg delområde fra rullegardinen her10"]
["1 - Velg område fra rullegardinen her2 - Velg delområde fra rullegardinen her11"]
["1 - Velg område fra rullegardinen her2 - Velg delområde fra rullegardinen her12"]
["1 - Velg område fra rullegardinen her2 - Velg delområde fra rullegardinen her13"]
["1 - Velg område fra rullegardinen her2 - Velg delområde fra rullegardinen her14"]
["1 - Velg område fra rullegardinen her2 - Velg delområde fra rullegardinen her15"]
["1 - Velg område fra rullegardinen her2 - Velg delområde fra rullegardinen her16"]
["1 - Velg område fra rullegardinen her2 - Velg delområde fra rullegardinen her17"]
["1 - Velg område fra rullegardinen her2 - Velg delområde fra rullegardinen her18"]
["1 - Velg område fra rullegardinen her2 - Velg delområde fra rullegardinen her19"]
["1 - Velg område fra rullegardinen her2 - Velg delområde fra rullegardinen her20"]
["1 - Velg område fra rullegardinen her2 - Velg delområde fra rullegardinen her21"]
["1 - Velg område fra rullegardinen her2 - Velg delområde fra rullegardinen her22"]
["1 - Velg område fra rullegardinen her2 - Velg delområde fra rullegardinen her23"]
["1 - Velg område fra rullegardinen her2 - Velg delområde fra rullegardinen her24"]
["1 - Velg område fra rullegardinen her2 - Velg delområde fra rullegardinen her25"]
["1 - Velg område fra rullegardinen her2 - Velg delområde fra rullegardinen her26"]
["1 - Velg område fra rullegardinen her2 - Velg delområde fra rullegardinen her27"]
["1 - Velg område fra rullegardinen her2 - Velg delområde fra rullegardinen her28"]
["1 - Velg område fra rullegardinen her2 - Velg delområde fra rullegardinen her29"]
["1 - Velg område fra rullegardinen her2 - Velg delområde fra rullegardinen her30"]
["1 - Velg område fra rullegardinen her2 - Velg delområde fra rullegardinen her31"]
["1 - Velg område fra rullegardinen her2 - Velg delområde fra rullegardinen her32"]
["1 - Velg område fra rullegardinen her2 - Velg delområde fra rullegardinen her33"]
["1 - Velg område fra rullegardinen her2 - Velg delområde fra rullegardinen her34"]
[]
["Nord RHF2 - Velg delområde fra rullegardinen her1"]
["Nord RHF2 - Velg delområde fra rullegardinen her2"]
["Nord RHF2 - Velg delområde fra rullegardinen her3"]
["Nord RHF2 - Velg delområde fra rullegardinen her4"]
["Nord RHF2 - Velg delområde fra rullegardinen her5"]
["Nord RHF2 - Velg delområde fra rullegardinen her6"]
["Nord RHF2 - Velg delområde fra rullegardinen her7"]
["Nord RHF2 - Velg delområde fra rullegardinen her8"]
["Nord RHF2 - Velg delområde fra rullegardinen her9"]
["Nord RHF2 - Velg delområde fra rullegardinen her10"]
["Nord RHF2 - Velg delområde fra rullegardinen her11"]
["Nord RHF2 - Velg delområde fra rullegardinen her12"]
["Nord RHF2 - Velg delområde fra rullegardinen her13"]
["Nord RHF2 - Velg delområde fra rullegardinen her14"]
["Nord RHF2 - Velg delområde fra rullegardinen her15"]
["Nord RHF2 - Velg delområde fra rullegardinen her16"]
["Nord RHF2 - Velg delområde fra rullegardinen her17"]
["Nord RHF2 - Velg delområde fra rullegardinen her18"]
["Nord RHF2 - Velg delområde fra rullegardinen her19"]
["Nord RHF2 - Velg delområde fra rullegardinen her20"]
["Nord RHF2 - Velg delområde fra rullegardinen her21"]
["Nord RHF2 - Velg delområde fra rullegardinen her22"]
["Nord RHF2 - Velg delområde fra rullegardinen her23"]
["Nord RHF2 - Velg delområde fra rullegardinen her24"]
["Nord RHF2 - Velg delområde fra rullegardinen her25"]
["Nord RHF2 - Velg delområde fra rullegardinen her26"]
["Nord RHF2 - Velg delområde fra rullegardinen her27"]
["Nord RHF2 - Velg delområde fra rullegardinen her28"]
["Nord RHF2 - Velg delområde fra rullegardinen her29"]
["Nord RHF2 - Velg delområde fra rullegardinen her30"]
["Nord RHF2 - Velg delområde fra rullegardinen her31"]
["Nord RHF2 - Velg delområde fra rullegardinen her32"]
["Nord RHF2 - Velg delområde fra rullegardinen her33"]
["Nord RHF2 - Velg delområde fra rullegardinen her34"]
[{"$f":"Database!$B231&Database!$C231&Database!$D231","v":""}]
["Midt-Norge RHF2 - Velg delområde fra rullegardinen her1"]
["Midt-Norge RHF2 - Velg delområde fra rullegardinen her2"]
["Midt-Norge RHF2 - Velg delområde fra rullegardinen her3"]
["Midt-Norge RHF2 - Velg delområde fra rullegardinen her4"]
["Midt-Norge RHF2 - Velg delområde fra rullegardinen her5"]
["Midt-Norge RHF2 - Velg delområde fra rullegardinen her6"]
["Midt-Norge RHF2 - Velg delområde fra rullegardinen her7"]
["Midt-Norge RHF2 - Velg delområde fra rullegardinen her8"]
["Midt-Norge RHF2 - Velg delområde fra rullegardinen her9"]
["Midt-Norge RHF2 - Velg delområde fra rullegardinen her10"]
["Midt-Norge RHF2 - Velg delområde fra rullegardinen her11"]
["Midt-Norge RHF2 - Velg delområde fra rullegardinen her12"]
["Midt-Norge RHF2 - Velg delområde fra rullegardinen her13"]
["Midt-Norge RHF2 - Velg delområde fra rullegardinen her14"]
["Midt-Norge RHF2 - Velg delområde fra rullegardinen her15"]
["Midt-Norge RHF2 - Velg delområde fra rullegardinen her16"]
["Midt-Norge RHF2 - Velg delområde fra rullegardinen her17"]
["Midt-Norge RHF2 - Velg delområde fra rullegardinen her18"]
["Midt-Norge RHF2 - Velg delområde fra rullegardinen her19"]
["Midt-Norge RHF2 - Velg delområde fra rullegardinen her20"]
["Midt-Norge RHF2 - Velg delområde fra rullegardinen her21"]
["Midt-Norge RHF2 - Velg delområde fra rullegardinen her22"]
["Midt-Norge RHF2 - Velg delområde fra rullegardinen her23"]
["Midt-Norge RHF2 - Velg delområde fra rullegardinen her24"]
["Midt-Norge RHF2 - Velg delområde fra rullegardinen her25"]
["Midt-Norge RHF2 - Velg delområde fra rullegardinen her26"]
["Midt-Norge RHF2 - Velg delområde fra rullegardinen her27"]
["Midt-Norge RHF2 - Velg delområde fra rullegardinen her28"]
["Midt-Norge RHF2 - Velg delområde fra rullegardinen her29"]
["Midt-Norge RHF2 - Velg delområde fra rullegardinen her30"]
["Midt-Norge RHF2 - Velg delområde fra rullegardinen her31"]
["Midt-Norge RHF2 - Velg delområde fra rullegardinen her32"]
["Midt-Norge RHF2 - Velg delområde fra rullegardinen her33"]
["Midt-Norge RHF2 - Velg delområde fra rullegardinen her34"]
[{"$f":"Database!$B266&Database!$C266&Database!$D266","v":""}]
["Vest RHF2 - Velg delområde fra rullegardinen her1"]
["Vest RHF2 - Velg delområde fra rullegardinen her2"]
["Vest RHF2 - Velg delområde fra rullegardinen her3"]
["Vest RHF2 - Velg delområde fra rullegardinen her4"]
["Vest RHF2 - Velg delområde fra rullegardinen her5"]
["Vest RHF2 - Velg delområde fra rullegardinen her6"]
["Vest RHF2 - Velg delområde fra rullegardinen her7"]
["Vest RHF2 - Velg delområde fra rullegardinen her8"]
["Vest RHF2 - Velg delområde fra rullegardinen her9"]
["Vest RHF2 - Velg delområde fra rullegardinen her10"]
["Vest RHF2 - Velg delområde fra rullegardinen her11"]
["Vest RHF2 - Velg delområde fra rullegardinen her12"]
["Vest RHF2 - Velg delområde fra rullegardinen her13"]
["Vest RHF2 - Velg delområde fra rullegardinen her14"]
["Vest RHF2 - Velg delområde fra rullegardinen her15"]
["Vest RHF2 - Velg delområde fra rullegardinen her16"]
["Vest RHF2 - Velg delområde fra rullegardinen her17"]
["Vest RHF2 - Velg delområde fra rullegardinen her18"]
["Vest RHF2 - Velg delområde fra rullegardinen her19"]
["Vest RHF2 - Velg delområde fra rullegardinen her20"]
["Vest RHF2 - Velg delområde fra rullegardinen her21"]
["Vest RHF2 - Velg delområde fra rullegardinen her22"]
["Vest RHF2 - Velg delområde fra rullegardinen her23"]
["Vest RHF2 - Velg delområde fra rullegardinen her24"]
["Vest RHF2 - Velg delområde fra rullegardinen her25"]
["Vest RHF2 - Velg delområde fra rullegardinen her26"]
["Vest RHF2 - Velg delområde fra rullegardinen her27"]
["Vest RHF2 - Velg delområde fra rullegardinen her28"]
["Vest RHF2 - Velg delområde fra rullegardinen her29"]
["Vest RHF2 - Velg delområde fra rullegardinen her30"]
["Vest RHF2 - Velg delområde fra rullegardinen her31"]
["Vest RHF2 - Velg delområde fra rullegardinen her32"]
["Vest RHF2 - Velg delområde fra rullegardinen her33"]
["Vest RHF2 - Velg delområde fra rullegardinen her34"]
[{"$f":"Database!$B301&Database!$C301&Database!$D301","v":""}]
["Sør-Øst RHF2 - Velg delområde fra rullegardinen her1"]
["Sør-Øst RHF2 - Velg delområde fra rullegardinen her2"]
["Sør-Øst RHF2 - Velg delområde fra rullegardinen her3"]
["Sør-Øst RHF2 - Velg delområde fra rullegardinen her4"]
["Sør-Øst RHF2 - Velg delområde fra rullegardinen her5"]
["Sør-Øst RHF2 - Velg delområde fra rullegardinen her6"]
["Sør-Øst RHF2 - Velg delområde fra rullegardinen her7"]
["Sør-Øst RHF2 - Velg delområde fra rullegardinen her8"]
["Sør-Øst RHF2 - Velg delområde fra rullegardinen her9"]
["Sør-Øst RHF2 - Velg delområde fra rullegardinen her10"]
["Sør-Øst RHF2 - Velg delområde fra rullegardinen her11"]
["Sør-Øst RHF2 - Velg delområde fra rullegardinen her12"]
["Sør-Øst RHF2 - Velg delområde fra rullegardinen her13"]
["Sør-Øst RHF2 - Velg delområde fra rullegardinen her14"]
["Sør-Øst RHF2 - Velg delområde fra rullegardinen her15"]
["Sør-Øst RHF2 - Velg delområde fra rullegardinen her16"]
["Sør-Øst RHF2 - Velg delområde fra rullegardinen her17"]
["Sør-Øst RHF2 - Velg delområde fra rullegardinen her18"]
["Sør-Øst RHF2 - Velg delområde fra rullegardinen her19"]
["Sør-Øst RHF2 - Velg delområde fra rullegardinen her20"]
["Sør-Øst RHF2 - Velg delområde fra rullegardinen her21"]
["Sør-Øst RHF2 - Velg delområde fra rullegardinen her22"]
["Sør-Øst RHF2 - Velg delområde fra rullegardinen her23"]
["Sør-Øst RHF2 - Velg delområde fra rullegardinen her24"]
["Sør-Øst RHF2 - Velg delområde fra rullegardinen her25"]
["Sør-Øst RHF2 - Velg delområde fra rullegardinen her26"]
["Sør-Øst RHF2 - Velg delområde fra rullegardinen her27"]
["Sør-Øst RHF2 - Velg delområde fra rullegardinen her28"]
["Sør-Øst RHF2 - Velg delområde fra rullegardinen her29"]
["Sør-Øst RHF2 - Velg delområde fra rullegardinen her30"]
["Sør-Øst RHF2 - Velg delområde fra rullegardinen her31"]
["Sør-Øst RHF2 - Velg delområde fra rullegardinen her32"]
["Sør-Øst RHF2 - Velg delområde fra rullegardinen her33"]
["Sør-Øst RHF2 - Velg delområde fra rullegardinen her34"]
[]
["NordProgram og Prosjektgjennomføring1"]
["NordProgram og Prosjektgjennomføring2"]
["NordProgram og Prosjektgjennomføring3"]
["NordProgram og Prosjektgjennomføring4"]
["NordProgram og Prosjektgjennomføring5"]
["NordProgram og Prosjektgjennomføring6"]
["NordProgram og Prosjektgjennomføring7"]
["NordProgram og Prosjektgjennomføring8"]
["NordProgram og Prosjektgjennomføring9"]
["NordProgram og Prosjektgjennomføring10"]
["NordProgram og Prosjektgjennomføring11"]
["NordProgram og Prosjektgjennomføring12"]
["NordProgram og Prosjektgjennomføring13"]
["NordProgram og Prosjektgjennomføring14"]
["NordProgram og Prosjektgjennomføring15"]
["NordProgram og Prosjektgjennomføring16"]
["NordProgram og Prosjektgjennomføring17"]
["NordProgram og Prosjektgjennomføring18"]
["NordProgram og Prosjektgjennomføring19"]
["NordProgram og Prosjektgjennomføring20"]
["NordProgram og Prosjektgjennomføring21"]
["NordProgram og Prosjektgjennomføring22"]
["NordProgram og Prosjektgjennomføring23"]
["NordProgram og Prosjektgjennomføring24"]
["NordProgram og Prosjektgjennomføring25"]
["NordProgram og Prosjektgjennomføring26"]
[""]
["NordStrategiplanlegging, rådgivning og innovasjon1"]
["NordStrategiplanlegging, rådgivning og innovasjon2"]
["NordStrategiplanlegging, rådgivning og innovasjon3"]
["NordStrategiplanlegging, rådgivning og innovasjon4"]
["NordStrategiplanlegging, rådgivning og innovasjon5"]
["NordStrategiplanlegging, rådgivning og innovasjon6"]
["NordStrategiplanlegging, rådgivning og innovasjon7"]
["NordStrategiplanlegging, rådgivning og innovasjon8"]
["NordStrategiplanlegging, rådgivning og innovasjon9"]
["NordStrategiplanlegging, rådgivning og innovasjon10"]
["NordStrategiplanlegging, rådgivning og innovasjon11"]
["NordStrategiplanlegging, rådgivning og innovasjon12"]
["NordStrategiplanlegging, rådgivning og innovasjon13"]
["NordStrategiplanlegging, rådgivning og innovasjon14"]
["NordStrategiplanlegging, rådgivning og innovasjon15"]
["NordStrategiplanlegging, rådgivning og innovasjon16"]
["NordStrategiplanlegging, rådgivning og innovasjon17"]
["NordStrategiplanlegging, rådgivning og innovasjon18"]
["NordStrategiplanlegging, rådgivning og innovasjon19"]
["NordStrategiplanlegging, rådgivning og innovasjon20"]
["NordStrategiplanlegging, rådgivning og innovasjon21"]
["NordStrategiplanlegging, rådgivning og innovasjon22"]
["NordStrategiplanlegging, rådgivning og innovasjon23"]
["NordStrategiplanlegging, rådgivning og innovasjon24"]
["NordStrategiplanlegging, rådgivning og innovasjon25"]
["NordStrategiplanlegging, rådgivning og innovasjon26"]
["NordStrategiplanlegging, rådgivning og innovasjon27"]
["NordStrategiplanlegging, rådgivning og innovasjon28"]
["NordStrategiplanlegging, rådgivning og innovasjon29"]
["NordStrategiplanlegging, rådgivning og innovasjon30"]
[""]
["NordArkitektur1"]
["NordArkitektur2"]
["NordArkitektur3"]
["NordArkitektur4"]
["NordArkitektur5"]
["NordArkitektur6"]
["NordArkitektur7"]
["NordArkitektur8"]
["NordArkitektur9"]
["NordArkitektur10"]
["NordArkitektur11"]
["NordArkitektur12"]
["NordArkitektur13"]
["NordArkitektur14"]
["NordArkitektur15"]
["NordArkitektur16"]
["NordArkitektur17"]
["NordArkitektur18"]
["NordArkitektur19"]
["NordArkitektur20"]
["NordArkitektur21"]
["NordArkitektur22"]
["NordArkitektur23"]
["NordArkitektur24"]
["NordArkitektur25"]
["NordArkitektur26"]
["NordArkitektur27"]
["NordArkitektur28"]
["NordArkitektur29"]
["NordArkitektur30"]
[""]
["NordInformasjonssikkerhet1"]
["NordInformasjonssikkerhet2"]
["NordInformasjonssikkerhet3"]
["NordInformasjonssikkerhet4"]
["NordInformasjonssikkerhet5"]
["NordInformasjonssikkerhet6"]
["NordInformasjonssikkerhet7"]
["NordInformasjonssikkerhet8"]
["NordInformasjonssikkerhet9"]
["NordInformasjonssikkerhet10"]
["NordInformasjonssikkerhet11"]
["NordInformasjonssikkerhet12"]
["NordInformasjonssikkerhet13"]
["NordInformasjonssikkerhet14"]
["NordInformasjonssikkerhet15"]
["NordInformasjonssikkerhet16"]
["NordInformasjonssikkerhet17"]
["NordInformasjonssikkerhet18"]
["NordInformasjonssikkerhet19"]
["NordInformasjonssikkerhet20"]
["NordInformasjonssikkerhet21"]
["NordInformasjonssikkerhet22"]
["NordInformasjonssikkerhet23"]
["NordInformasjonssikkerhet24"]
["NordInformasjonssikkerhet25"]
["NordInformasjonssikkerhet26"]
[""]
["NordTestledelse og Release-gjennomføring1"]
["NordTestledelse og Release-gjennomføring2"]
["NordTestledelse og Release-gjennomføring3"]
["NordTestledelse og Release-gjennomføring4"]
["NordTestledelse og Release-gjennomføring5"]
["NordTestledelse og Release-gjennomføring6"]
["NordTestledelse og Release-gjennomføring7"]
["NordTestledelse og Release-gjennomføring8"]
["NordTestledelse og Release-gjennomføring9"]
["NordTestledelse og Release-gjennomføring10"]
["NordTestledelse og Release-gjennomføring11"]
["NordTestledelse og Release-gjennomføring12"]
["NordTestledelse og Release-gjennomføring13"]
["NordTestledelse og Release-gjennomføring14"]
["NordTestledelse og Release-gjennomføring15"]
["NordTestledelse og Release-gjennomføring16"]
["NordTestledelse og Release-gjennomføring17"]
["NordTestledelse og Release-gjennomføring18"]
["NordTestledelse og Release-gjennomføring19"]
["NordTestledelse og Release-gjennomføring20"]
["NordTestledelse og Release-gjennomføring21"]
["NordTestledelse og Release-gjennomføring22"]
["NordTestledelse og Release-gjennomføring23"]
["NordTestledelse og Release-gjennomføring24"]
["NordTestledelse og Release-gjennomføring25"]
["NordTestledelse og Release-gjennomføring26"]
[""]
[""]
["NordElektronisk samhandling/integrasjoner/systemutvikling1"]
["NordElektronisk samhandling/integrasjoner/systemutvikling2"]
["NordElektronisk samhandling/integrasjoner/systemutvikling3"]
["NordElektronisk samhandling/integrasjoner/systemutvikling4"]
["NordElektronisk samhandling/integrasjoner/systemutvikling5"]
["NordElektronisk samhandling/integrasjoner/systemutvikling6"]
["NordElektronisk samhandling/integrasjoner/systemutvikling7"]
["NordElektronisk samhandling/integrasjoner/systemutvikling8"]
["NordElektronisk samhandling/integrasjoner/systemutvikling9"]
["NordElektronisk samhandling/integrasjoner/systemutvikling10"]
["NordElektronisk samhandling/integrasjoner/systemutvikling11"]
["NordElektronisk samhandling/integrasjoner/systemutvikling12"]
["NordElektronisk samhandling/integrasjoner/systemutvikling13"]
["NordElektronisk samhandling/integrasjoner/systemutvikling14"]
["NordElektronisk samhandling/integrasjoner/systemutvikling15"]
["NordElektronisk samhandling/integrasjoner/systemutvikling16"]
["NordElektronisk samhandling/integrasjoner/systemutvikling17"]
["NordElektronisk samhandling/integrasjoner/systemutvikling18"]
["NordElektronisk samhandling/integrasjoner/systemutvikling19"]
["NordElektronisk samhandling/integrasjoner/systemutvikling20"]
["NordElektronisk samhandling/integrasjoner/systemutvikling21"]
["NordElektronisk samhandling/integrasjoner/systemutvikling22"]
["NordElektronisk samhandling/integrasjoner/systemutvikling23"]
["NordElektronisk samhandling/integrasjoner/systemutvikling24"]
["NordElektronisk samhandling/integrasjoner/systemutvikling25"]
["NordElektronisk samhandling/integrasjoner/systemutvikling26"]
[""]
["NordDrift og Forvaltning av IT-systemer og plattformer1"]
["NordDrift og Forvaltning av IT-systemer og plattformer2"]
["NordDrift og Forvaltning av IT-systemer og plattformer3"]
["NordDrift og Forvaltning av IT-systemer og plattformer4"]
["NordDrift og Forvaltning av IT-systemer og plattformer5"]
["NordDrift og Forvaltning av IT-systemer og plattformer6"]
["NordDrift og Forvaltning av IT-systemer og plattformer7"]
["NordDrift og Forvaltning av IT-systemer og plattformer8"]
["NordDrift og Forvaltning av IT-systemer og plattformer9"]
["NordDrift og Forvaltning av IT-systemer og plattformer10"]
["NordDrift og Forvaltning av IT-systemer og plattformer11"]
["NordDrift og Forvaltning av IT-systemer og plattformer12"]
["NordDrift og Forvaltning av IT-systemer og plattformer13"]
["NordDrift og Forvaltning av IT-systemer og plattformer14"]
["NordDrift og Forvaltning av IT-systemer og plattformer15"]
["NordDrift og Forvaltning av IT-systemer og plattformer16"]
["NordDrift og Forvaltning av IT-systemer og plattformer17"]
["NordDrift og Forvaltning av IT-systemer og plattformer18"]
["NordDrift og Forvaltning av IT-systemer og plattformer19"]
["NordDrift og Forvaltning av IT-systemer og plattformer20"]
["NordDrift og Forvaltning av IT-systemer og plattformer21"]
["NordDrift og Forvaltning av IT-systemer og plattformer22"]
["NordDrift og Forvaltning av IT-systemer og plattformer23"]
["NordDrift og Forvaltning av IT-systemer og plattformer24"]
["NordDrift og Forvaltning av IT-systemer og plattformer25"]
["NordDrift og Forvaltning av IT-systemer og plattformer26"]
[""]
["NordDatakommunikasjon og Telekommunikasjon1"]
["NordDatakommunikasjon og Telekommunikasjon2"]
["NordDatakommunikasjon og Telekommunikasjon3"]
["NordDatakommunikasjon og Telekommunikasjon4"]
["NordDatakommunikasjon og Telekommunikasjon5"]
["NordDatakommunikasjon og Telekommunikasjon6"]
["NordDatakommunikasjon og Telekommunikasjon7"]
["NordDatakommunikasjon og Telekommunikasjon8"]
["NordDatakommunikasjon og Telekommunikasjon9"]
["NordDatakommunikasjon og Telekommunikasjon10"]
["NordDatakommunikasjon og Telekommunikasjon11"]
["NordDatakommunikasjon og Telekommunikasjon12"]
["NordDatakommunikasjon og Telekommunikasjon13"]
["NordDatakommunikasjon og Telekommunikasjon14"]
["NordDatakommunikasjon og Telekommunikasjon15"]
["NordDatakommunikasjon og Telekommunikasjon16"]
["NordDatakommunikasjon og Telekommunikasjon17"]
["NordDatakommunikasjon og Telekommunikasjon18"]
["NordDatakommunikasjon og Telekommunikasjon19"]
["NordDatakommunikasjon og Telekommunikasjon20"]
["NordDatakommunikasjon og Telekommunikasjon21"]
["NordDatakommunikasjon og Telekommunikasjon22"]
["NordDatakommunikasjon og Telekommunikasjon23"]
["NordDatakommunikasjon og Telekommunikasjon24"]
["NordDatakommunikasjon og Telekommunikasjon25"]
["NordDatakommunikasjon og Telekommunikasjon26"]
[""]
["NordApplikasjonsforvaltning1"]
["NordApplikasjonsforvaltning2"]
["NordApplikasjonsforvaltning3"]
["NordApplikasjonsforvaltning4"]
["NordApplikasjonsforvaltning5"]
["NordApplikasjonsforvaltning6"]
["NordApplikasjonsforvaltning7"]
["NordApplikasjonsforvaltning8"]
["NordApplikasjonsforvaltning9"]
["NordApplikasjonsforvaltning10"]
["NordApplikasjonsforvaltning11"]
["NordApplikasjonsforvaltning12"]
["NordApplikasjonsforvaltning13"]
["NordApplikasjonsforvaltning14"]
["NordApplikasjonsforvaltning15"]
["NordApplikasjonsforvaltning16"]
["NordApplikasjonsforvaltning17"]
["NordApplikasjonsforvaltning18"]
["NordApplikasjonsforvaltning19"]
["NordApplikasjonsforvaltning20"]
["NordApplikasjonsforvaltning21"]
["NordApplikasjonsforvaltning22"]
["NordApplikasjonsforvaltning23"]
["NordApplikasjonsforvaltning24"]
["NordApplikasjonsforvaltning25"]
["NordApplikasjonsforvaltning26"]
[""]
["NordKlientplattform1"]
["NordKlientplattform2"]
["NordKlientplattform3"]
["NordKlientplattform4"]
["NordKlientplattform5"]
["NordKlientplattform6"]
["NordKlientplattform7"]
["NordKlientplattform8"]
["NordKlientplattform9"]
["NordKlientplattform10"]
["NordKlientplattform11"]
["NordKlientplattform12"]
["NordKlientplattform13"]
["NordKlientplattform14"]
["NordKlientplattform15"]
["NordKlientplattform16"]
["NordKlientplattform17"]
["NordKlientplattform18"]
["NordKlientplattform19"]
["NordKlientplattform20"]
["NordKlientplattform21"]
["NordKlientplattform22"]
["NordKlientplattform23"]
["NordKlientplattform24"]
["NordKlientplattform25"]
["NordKlientplattform26"]
[""]
["Midt-NorgeProgram og Prosjektgjennomføring1"]
["Midt-NorgeProgram og Prosjektgjennomføring2"]
["Midt-NorgeProgram og Prosjektgjennomføring3"]
["Midt-NorgeProgram og Prosjektgjennomføring4"]
["Midt-NorgeProgram og Prosjektgjennomføring5"]
["Midt-NorgeProgram og Prosjektgjennomføring6"]
["Midt-NorgeProgram og Prosjektgjennomføring7"]
["Midt-NorgeProgram og Prosjektgjennomføring8"]
["Midt-NorgeProgram og Prosjektgjennomføring9"]
["Midt-NorgeProgram og Prosjektgjennomføring10"]
["Midt-NorgeProgram og Prosjektgjennomføring11"]
["Midt-NorgeProgram og Prosjektgjennomføring12"]
["Midt-NorgeProgram og Prosjektgjennomføring13"]
["Midt-NorgeProgram og Prosjektgjennomføring14"]
["Midt-NorgeProgram og Prosjektgjennomføring15"]
["Midt-NorgeProgram og Prosjektgjennomføring16"]
["Midt-NorgeProgram og Prosjektgjennomføring17"]
["Midt-NorgeProgram og Prosjektgjennomføring18"]
["Midt-NorgeProgram og Prosjektgjennomføring19"]
["Midt-NorgeProgram og Prosjektgjennomføring20"]
["Midt-NorgeProgram og Prosjektgjennomføring21"]
["Midt-NorgeProgram og Prosjektgjennomføring22"]
["Midt-NorgeProgram og Prosjektgjennomføring23"]
["Midt-NorgeProgram og Prosjektgjennomføring24"]
["Midt-NorgeProgram og Prosjektgjennomføring25"]
["Midt-NorgeProgram og Prosjektgjennomføring26"]
[""]
["Midt-NorgeStrategiplanlegging, rådgivning og innovasjon1"]
["Midt-NorgeStrategiplanlegging, rådgivning og innovasjon2"]
["Midt-NorgeStrategiplanlegging, rådgivning og innovasjon3"]
["Midt-NorgeStrategiplanlegging, rådgivning og innovasjon4"]
["Midt-NorgeStrategiplanlegging, rådgivning og innovasjon5"]
["Midt-NorgeStrategiplanlegging, rådgivning og innovasjon6"]
["Midt-NorgeStrategiplanlegging, rådgivning og innovasjon7"]
["Midt-NorgeStrategiplanlegging, rådgivning og innovasjon8"]
["Midt-NorgeStrategiplanlegging, rådgivning og innovasjon9"]
["Midt-NorgeStrategiplanlegging, rådgivning og innovasjon10"]
["Midt-NorgeStrategiplanlegging, rådgivning og innovasjon11"]
["Midt-NorgeStrategiplanlegging, rådgivning og innovasjon12"]
["Midt-NorgeStrategiplanlegging, rådgivning og innovasjon13"]
["Midt-NorgeStrategiplanlegging, rådgivning og innovasjon14"]
["Midt-NorgeStrategiplanlegging, rådgivning og innovasjon15"]
["Midt-NorgeStrategiplanlegging, rådgivning og innovasjon16"]
["Midt-NorgeStrategiplanlegging, rådgivning og innovasjon17"]
["Midt-NorgeStrategiplanlegging, rådgivning og innovasjon18"]
["Midt-NorgeStrategiplanlegging, rådgivning og innovasjon19"]
["Midt-NorgeStrategiplanlegging, rådgivning og innovasjon20"]
["Midt-NorgeStrategiplanlegging, rådgivning og innovasjon21"]
["Midt-NorgeStrategiplanlegging, rådgivning og innovasjon22"]
["Midt-NorgeStrategiplanlegging, rådgivning og innovasjon23"]
["Midt-NorgeStrategiplanlegging, rådgivning og innovasjon24"]
["Midt-NorgeStrategiplanlegging, rådgivning og innovasjon25"]
["Midt-NorgeStrategiplanlegging, rådgivning og innovasjon26"]
[""]
["Midt-NorgeArkitektur1"]
["Midt-NorgeArkitektur2"]
["Midt-NorgeArkitektur3"]
["Midt-NorgeArkitektur4"]
["Midt-NorgeArkitektur5"]
["Midt-NorgeArkitektur6"]
["Midt-NorgeArkitektur7"]
["Midt-NorgeArkitektur8"]
["Midt-NorgeArkitektur9"]
["Midt-NorgeArkitektur10"]
["Midt-NorgeArkitektur11"]
["Midt-NorgeArkitektur12"]
["Midt-NorgeArkitektur13"]
["Midt-NorgeArkitektur14"]
["Midt-NorgeArkitektur15"]
["Midt-NorgeArkitektur16"]
["Midt-NorgeArkitektur17"]
["Midt-NorgeArkitektur18"]
["Midt-NorgeArkitektur19"]
["Midt-NorgeArkitektur20"]
["Midt-NorgeArkitektur21"]
["Midt-NorgeArkitektur22"]
["Midt-NorgeArkitektur23"]
["Midt-NorgeArkitektur24"]
["Midt-NorgeArkitektur25"]
["Midt-NorgeArkitektur26"]
[""]
["Midt-NorgeInformasjonssikkerhet1"]
["Midt-NorgeInformasjonssikkerhet2"]
["Midt-NorgeInformasjonssikkerhet3"]
["Midt-NorgeInformasjonssikkerhet4"]
["Midt-NorgeInformasjonssikkerhet5"]
["Midt-NorgeInformasjonssikkerhet6"]
["Midt-NorgeInformasjonssikkerhet7"]
["Midt-NorgeInformasjonssikkerhet8"]
["Midt-NorgeInformasjonssikkerhet9"]
["Midt-NorgeInformasjonssikkerhet10"]
["Midt-NorgeInformasjonssikkerhet11"]
["Midt-NorgeInformasjonssikkerhet12"]
["Midt-NorgeInformasjonssikkerhet13"]
["Midt-NorgeInformasjonssikkerhet14"]
["Midt-NorgeInformasjonssikkerhet15"]
["Midt-NorgeInformasjonssikkerhet16"]
["Midt-NorgeInformasjonssikkerhet17"]
["Midt-NorgeInformasjonssikkerhet18"]
["Midt-NorgeInformasjonssikkerhet19"]
["Midt-NorgeInformasjonssikkerhet20"]
["Midt-NorgeInformasjonssikkerhet21"]
["Midt-NorgeInformasjonssikkerhet22"]
["Midt-NorgeInformasjonssikkerhet23"]
["Midt-NorgeInformasjonssikkerhet24"]
["Midt-NorgeInformasjonssikkerhet25"]
["Midt-NorgeInformasjonssikkerhet26"]
[""]
["Midt-NorgeTestledelse og Release-gjennomføring1"]
["Midt-NorgeTestledelse og Release-gjennomføring2"]
["Midt-NorgeTestledelse og Release-gjennomføring3"]
["Midt-NorgeTestledelse og Release-gjennomføring4"]
["Midt-NorgeTestledelse og Release-gjennomføring5"]
["Midt-NorgeTestledelse og Release-gjennomføring6"]
["Midt-NorgeTestledelse og Release-gjennomføring7"]
["Midt-NorgeTestledelse og Release-gjennomføring8"]
["Midt-NorgeTestledelse og Release-gjennomføring9"]
["Midt-NorgeTestledelse og Release-gjennomføring10"]
["Midt-NorgeTestledelse og Release-gjennomføring11"]
["Midt-NorgeTestledelse og Release-gjennomføring12"]
["Midt-NorgeTestledelse og Release-gjennomføring13"]
["Midt-NorgeTestledelse og Release-gjennomføring14"]
["Midt-NorgeTestledelse og Release-gjennomføring15"]
["Midt-NorgeTestledelse og Release-gjennomføring16"]
["Midt-NorgeTestledelse og Release-gjennomføring17"]
["Midt-NorgeTestledelse og Release-gjennomføring18"]
["Midt-NorgeTestledelse og Release-gjennomføring19"]
["Midt-NorgeTestledelse og Release-gjennomføring20"]
["Midt-NorgeTestledelse og Release-gjennomføring21"]
["Midt-NorgeTestledelse og Release-gjennomføring22"]
["Midt-NorgeTestledelse og Release-gjennomføring23"]
["Midt-NorgeTestledelse og Release-gjennomføring24"]
["Midt-NorgeTestledelse og Release-gjennomføring25"]
["Midt-NorgeTestledelse og Release-gjennomføring26"]
[""]
["Midt-NorgeElektronisk samhandling/integrasjoner/systemutvikling1"]
["Midt-NorgeElektronisk samhandling/integrasjoner/systemutvikling2"]
["Midt-NorgeElektronisk samhandling/integrasjoner/systemutvikling3"]
["Midt-NorgeElektronisk samhandling/integrasjoner/systemutvikling4"]
["Midt-NorgeElektronisk samhandling/integrasjoner/systemutvikling5"]
["Midt-NorgeElektronisk samhandling/integrasjoner/systemutvikling6"]
["Midt-NorgeElektronisk samhandling/integrasjoner/systemutvikling7"]
["Midt-NorgeElektronisk samhandling/integrasjoner/systemutvikling8"]
["Midt-NorgeElektronisk samhandling/integrasjoner/systemutvikling9"]
["Midt-NorgeElektronisk samhandling/integrasjoner/systemutvikling10"]
["Midt-NorgeElektronisk samhandling/integrasjoner/systemutvikling11"]
["Midt-NorgeElektronisk samhandling/integrasjoner/systemutvikling12"]
["Midt-NorgeElektronisk samhandling/integrasjoner/systemutvikling13"]
["Midt-NorgeElektronisk samhandling/integrasjoner/systemutvikling14"]
["Midt-NorgeElektronisk samhandling/integrasjoner/systemutvikling15"]
["Midt-NorgeElektronisk samhandling/integrasjoner/systemutvikling16"]
["Midt-NorgeElektronisk samhandling/integrasjoner/systemutvikling17"]
["Midt-NorgeElektronisk samhandling/integrasjoner/systemutvikling18"]
["Midt-NorgeElektronisk samhandling/integrasjoner/systemutvikling19"]
["Midt-NorgeElektronisk samhandling/integrasjoner/systemutvikling20"]
["Midt-NorgeElektronisk samhandling/integrasjoner/systemutvikling21"]
["Midt-NorgeElektronisk samhandling/integrasjoner/systemutvikling22"]
["Midt-NorgeElektronisk samhandling/integrasjoner/systemutvikling23"]
["Midt-NorgeElektronisk samhandling/integrasjoner/systemutvikling24"]
["Midt-NorgeElektronisk samhandling/integrasjoner/systemutvikling25"]
["Midt-NorgeElektronisk samhandling/integrasjoner/systemutvikling26"]
[""]
["Midt-NorgeDrift og Forvaltning av IT-systemer og plattformer1"]
["Midt-NorgeDrift og Forvaltning av IT-systemer og plattformer2"]
["Midt-NorgeDrift og Forvaltning av IT-systemer og plattformer3"]
["Midt-NorgeDrift og Forvaltning av IT-systemer og plattformer4"]
["Midt-NorgeDrift og Forvaltning av IT-systemer og plattformer5"]
["Midt-NorgeDrift og Forvaltning av IT-systemer og plattformer6"]
["Midt-NorgeDrift og Forvaltning av IT-systemer og plattformer7"]
["Midt-NorgeDrift og Forvaltning av IT-systemer og plattformer8"]
["Midt-NorgeDrift og Forvaltning av IT-systemer og plattformer9"]
["Midt-NorgeDrift og Forvaltning av IT-systemer og plattformer10"]
["Midt-NorgeDrift og Forvaltning av IT-systemer og plattformer11"]
["Midt-NorgeDrift og Forvaltning av IT-systemer og plattformer12"]
["Midt-NorgeDrift og Forvaltning av IT-systemer og plattformer13"]
["Midt-NorgeDrift og Forvaltning av IT-systemer og plattformer14"]
["Midt-NorgeDrift og Forvaltning av IT-systemer og plattformer15"]
["Midt-NorgeDrift og Forvaltning av IT-systemer og plattformer16"]
["Midt-NorgeDrift og Forvaltning av IT-systemer og plattformer17"]
["Midt-NorgeDrift og Forvaltning av IT-systemer og plattformer18"]
["Midt-NorgeDrift og Forvaltning av IT-systemer og plattformer19"]
["Midt-NorgeDrift og Forvaltning av IT-systemer og plattformer20"]
["Midt-NorgeDrift og Forvaltning av IT-systemer og plattformer21"]
["Midt-NorgeDrift og Forvaltning av IT-systemer og plattformer22"]
["Midt-NorgeDrift og Forvaltning av IT-systemer og plattformer23"]
["Midt-NorgeDrift og Forvaltning av IT-systemer og plattformer24"]
["Midt-NorgeDrift og Forvaltning av IT-systemer og plattformer25"]
["Midt-NorgeDrift og Forvaltning av IT-systemer og plattformer26"]
[]
["Midt-NorgeDatakommunikasjon og Telekommunikasjon1"]
["Midt-NorgeDatakommunikasjon og Telekommunikasjon2"]
["Midt-NorgeDatakommunikasjon og Telekommunikasjon3"]
["Midt-NorgeDatakommunikasjon og Telekommunikasjon4"]
["Midt-NorgeDatakommunikasjon og Telekommunikasjon5"]
["Midt-NorgeDatakommunikasjon og Telekommunikasjon6"]
["Midt-NorgeDatakommunikasjon og Telekommunikasjon7"]
["Midt-NorgeDatakommunikasjon og Telekommunikasjon8"]
["Midt-NorgeDatakommunikasjon og Telekommunikasjon9"]
["Midt-NorgeDatakommunikasjon og Telekommunikasjon10"]
["Midt-NorgeDatakommunikasjon og Telekommunikasjon11"]
["Midt-NorgeDatakommunikasjon og Telekommunikasjon12"]
["Midt-NorgeDatakommunikasjon og Telekommunikasjon13"]
["Midt-NorgeDatakommunikasjon og Telekommunikasjon14"]
["Midt-NorgeDatakommunikasjon og Telekommunikasjon15"]
["Midt-NorgeDatakommunikasjon og Telekommunikasjon16"]
["Midt-NorgeDatakommunikasjon og Telekommunikasjon17"]
["Midt-NorgeDatakommunikasjon og Telekommunikasjon18"]
["Midt-NorgeDatakommunikasjon og Telekommunikasjon19"]
["Midt-NorgeDatakommunikasjon og Telekommunikasjon20"]
["Midt-NorgeDatakommunikasjon og Telekommunikasjon21"]
["Midt-NorgeDatakommunikasjon og Telekommunikasjon22"]
["Midt-NorgeDatakommunikasjon og Telekommunikasjon23"]
["Midt-NorgeDatakommunikasjon og Telekommunikasjon24"]
["Midt-NorgeDatakommunikasjon og Telekommunikasjon25"]
["Midt-NorgeDatakommunikasjon og Telekommunikasjon26"]
[""]
["Midt-NorgeApplikasjonsforvaltning1"]
["Midt-NorgeApplikasjonsforvaltning2"]
["Midt-NorgeApplikasjonsforvaltning3"]
["Midt-NorgeApplikasjonsforvaltning4"]
["Midt-NorgeApplikasjonsforvaltning5"]
["Midt-NorgeApplikasjonsforvaltning6"]
["Midt-NorgeApplikasjonsforvaltning7"]
["Midt-NorgeApplikasjonsforvaltning8"]
["Midt-NorgeApplikasjonsforvaltning9"]
["Midt-NorgeApplikasjonsforvaltning10"]
["Midt-NorgeApplikasjonsforvaltning11"]
["Midt-NorgeApplikasjonsforvaltning12"]
["Midt-NorgeApplikasjonsforvaltning13"]
["Midt-NorgeApplikasjonsforvaltning14"]
["Midt-NorgeApplikasjonsforvaltning15"]
["Midt-NorgeApplikasjonsforvaltning16"]
["Midt-NorgeApplikasjonsforvaltning17"]
["Midt-NorgeApplikasjonsforvaltning18"]
["Midt-NorgeApplikasjonsforvaltning19"]
["Midt-NorgeApplikasjonsforvaltning20"]
["Midt-NorgeApplikasjonsforvaltning21"]
["Midt-NorgeApplikasjonsforvaltning22"]
["Midt-NorgeApplikasjonsforvaltning23"]
["Midt-NorgeApplikasjonsforvaltning24"]
["Midt-NorgeApplikasjonsforvaltning25"]
["Midt-NorgeApplikasjonsforvaltning26"]
[]
["Midt-NorgeKlientplattform1"]
["Midt-NorgeKlientplattform2"]
["Midt-NorgeKlientplattform3"]
["Midt-NorgeKlientplattform4"]
["Midt-NorgeKlientplattform5"]
["Midt-NorgeKlientplattform6"]
["Midt-NorgeKlientplattform7"]
["Midt-NorgeKlientplattform8"]
["Midt-NorgeKlientplattform9"]
["Midt-NorgeKlientplattform10"]
["Midt-NorgeKlientplattform11"]
["Midt-NorgeKlientplattform12"]
["Midt-NorgeKlientplattform13"]
["Midt-NorgeKlientplattform14"]
["Midt-NorgeKlientplattform15"]
["Midt-NorgeKlientplattform16"]
["Midt-NorgeKlientplattform17"]
["Midt-NorgeKlientplattform18"]
["Midt-NorgeKlientplattform19"]
["Midt-NorgeKlientplattform20"]
["Midt-NorgeKlientplattform21"]
["Midt-NorgeKlientplattform22"]
["Midt-NorgeKlientplattform23"]
["Midt-NorgeKlientplattform24"]
["Midt-NorgeKlientplattform25"]
["Midt-NorgeKlientplattform26"]
[]
["VestProgram og Prosjektgjennomføring1"]
["VestProgram og Prosjektgjennomføring2"]
["VestProgram og Prosjektgjennomføring3"]
["VestProgram og Prosjektgjennomføring4"]
["VestProgram og Prosjektgjennomføring5"]
["VestProgram og Prosjektgjennomføring6"]
["VestProgram og Prosjektgjennomføring7"]
["VestProgram og Prosjektgjennomføring8"]
["VestProgram og Prosjektgjennomføring9"]
["VestProgram og Prosjektgjennomføring10"]
["VestProgram og Prosjektgjennomføring11"]
["VestProgram og Prosjektgjennomføring12"]
["VestProgram og Prosjektgjennomføring13"]
["VestProgram og Prosjektgjennomføring14"]
["VestProgram og Prosjektgjennomføring15"]
["VestProgram og Prosjektgjennomføring16"]
["VestProgram og Prosjektgjennomføring17"]
["VestProgram og Prosjektgjennomføring18"]
["VestProgram og Prosjektgjennomføring19"]
["VestProgram og Prosjektgjennomføring20"]
["VestProgram og Prosjektgjennomføring21"]
["VestProgram og Prosjektgjennomføring22"]
["VestProgram og Prosjektgjennomføring23"]
["VestProgram og Prosjektgjennomføring24"]
["VestProgram og Prosjektgjennomføring25"]
["VestProgram og Prosjektgjennomføring26"]
["VestProgram og Prosjektgjennomføring27"]
["VestProgram og Prosjektgjennomføring28"]
["VestProgram og Prosjektgjennomføring29"]
["VestProgram og Prosjektgjennomføring30"]
[]
["VestStrategiplanlegging, rådgivning og innovasjon1"]
["VestStrategiplanlegging, rådgivning og innovasjon2"]
["VestStrategiplanlegging, rådgivning og innovasjon3"]
["VestStrategiplanlegging, rådgivning og innovasjon4"]
["VestStrategiplanlegging, rådgivning og innovasjon5"]
["VestStrategiplanlegging, rådgivning og innovasjon6"]
["VestStrategiplanlegging, rådgivning og innovasjon7"]
["VestStrategiplanlegging, rådgivning og innovasjon8"]
["VestStrategiplanlegging, rådgivning og innovasjon9"]
["VestStrategiplanlegging, rådgivning og innovasjon10"]
["VestStrategiplanlegging, rådgivning og innovasjon11"]
["VestStrategiplanlegging, rådgivning og innovasjon12"]
["VestStrategiplanlegging, rådgivning og innovasjon13"]
["VestStrategiplanlegging, rådgivning og innovasjon14"]
["VestStrategiplanlegging, rådgivning og innovasjon15"]
["VestStrategiplanlegging, rådgivning og innovasjon16"]
["VestStrategiplanlegging, rådgivning og innovasjon17"]
["VestStrategiplanlegging, rådgivning og innovasjon18"]
["VestStrategiplanlegging, rådgivning og innovasjon19"]
["VestStrategiplanlegging, rådgivning og innovasjon20"]
["VestStrategiplanlegging, rådgivning og innovasjon21"]
["VestStrategiplanlegging, rådgivning og innovasjon22"]
["VestStrategiplanlegging, rådgivning og innovasjon23"]
["VestStrategiplanlegging, rådgivning og innovasjon24"]
["VestStrategiplanlegging, rådgivning og innovasjon25"]
["VestStrategiplanlegging, rådgivning og innovasjon26"]
[]
["VestArkitektur1"]
["VestArkitektur2"]
["VestArkitektur3"]
["VestArkitektur4"]
["VestArkitektur5"]
["VestArkitektur6"]
["VestArkitektur7"]
["VestArkitektur8"]
["VestArkitektur9"]
["VestArkitektur10"]
["VestArkitektur11"]
["VestArkitektur12"]
["VestArkitektur13"]
["VestArkitektur14"]
["VestArkitektur15"]
["VestArkitektur16"]
["VestArkitektur17"]
["VestArkitektur18"]
["VestArkitektur19"]
["VestArkitektur20"]
["VestArkitektur21"]
["VestArkitektur22"]
["VestArkitektur23"]
["VestArkitektur24"]
["VestArkitektur25"]
["VestArkitektur26"]
[]
["VestInformasjonssikkerhet1"]
["VestInformasjonssikkerhet2"]
["VestInformasjonssikkerhet3"]
["VestInformasjonssikkerhet4"]
["VestInformasjonssikkerhet5"]
["VestInformasjonssikkerhet6"]
["VestInformasjonssikkerhet7"]
["VestInformasjonssikkerhet8"]
["VestInformasjonssikkerhet9"]
["VestInformasjonssikkerhet10"]
["VestInformasjonssikkerhet11"]
["VestInformasjonssikkerhet12"]
["VestInformasjonssikkerhet13"]
["VestInformasjonssikkerhet14"]
["VestInformasjonssikkerhet15"]
["VestInformasjonssikkerhet16"]
["VestInformasjonssikkerhet17"]
["VestInformasjonssikkerhet18"]
["VestInformasjonssikkerhet19"]
["VestInformasjonssikkerhet20"]
["VestInformasjonssikkerhet21"]
["VestInformasjonssikkerhet22"]
["VestInformasjonssikkerhet23"]
["VestInformasjonssikkerhet24"]
["VestInformasjonssikkerhet25"]
["VestInformasjonssikkerhet26"]
[]
["VestTestledelse og Release-gjennomføring1"]
["VestTestledelse og Release-gjennomføring2"]
["VestTestledelse og Release-gjennomføring3"]
["VestTestledelse og Release-gjennomføring4"]
["VestTestledelse og Release-gjennomføring5"]
["VestTestledelse og Release-gjennomføring6"]
["VestTestledelse og Release-gjennomføring7"]
["VestTestledelse og Release-gjennomføring8"]
["VestTestledelse og Release-gjennomføring9"]
["VestTestledelse og Release-gjennomføring10"]
["VestTestledelse og Release-gjennomføring11"]
["VestTestledelse og Release-gjennomføring12"]
["VestTestledelse og Release-gjennomføring13"]
["VestTestledelse og Release-gjennomføring14"]
["VestTestledelse og Release-gjennomføring15"]
["VestTestledelse og Release-gjennomføring16"]
["VestTestledelse og Release-gjennomføring17"]
["VestTestledelse og Release-gjennomføring18"]
["VestTestledelse og Release-gjennomføring19"]
["VestTestledelse og Release-gjennomføring20"]
["VestTestledelse og Release-gjennomføring21"]
["VestTestledelse og Release-gjennomføring22"]
["VestTestledelse og Release-gjennomføring23"]
["VestTestledelse og Release-gjennomføring24"]
["VestTestledelse og Release-gjennomføring25"]
["VestTestledelse og Release-gjennomføring26"]
[]
["VestElektronisk samhandling/integrasjoner/systemutvikling1"]
["VestElektronisk samhandling/integrasjoner/systemutvikling2"]
["VestElektronisk samhandling/integrasjoner/systemutvikling3"]
["VestElektronisk samhandling/integrasjoner/systemutvikling4"]
["VestElektronisk samhandling/integrasjoner/systemutvikling5"]
["VestElektronisk samhandling/integrasjoner/systemutvikling6"]
["VestElektronisk samhandling/integrasjoner/systemutvikling7"]
["VestElektronisk samhandling/integrasjoner/systemutvikling8"]
["VestElektronisk samhandling/integrasjoner/systemutvikling9"]
["VestElektronisk samhandling/integrasjoner/systemutvikling10"]
["VestElektronisk samhandling/integrasjoner/systemutvikling11"]
["VestElektronisk samhandling/integrasjoner/systemutvikling12"]
["VestElektronisk samhandling/integrasjoner/systemutvikling13"]
["VestElektronisk samhandling/integrasjoner/systemutvikling14"]
["VestElektronisk samhandling/integrasjoner/systemutvikling15"]
["VestElektronisk samhandling/integrasjoner/systemutvikling16"]
["VestElektronisk samhandling/integrasjoner/systemutvikling17"]
["VestElektronisk samhandling/integrasjoner/systemutvikling18"]
["VestElektronisk samhandling/integrasjoner/systemutvikling19"]
["VestElektronisk samhandling/integrasjoner/systemutvikling20"]
["VestElektronisk samhandling/integrasjoner/systemutvikling21"]
["VestElektronisk samhandling/integrasjoner/systemutvikling22"]
["VestElektronisk samhandling/integrasjoner/systemutvikling23"]
["VestElektronisk samhandling/integrasjoner/systemutvikling24"]
["VestElektronisk samhandling/integrasjoner/systemutvikling25"]
["VestElektronisk samhandling/integrasjoner/systemutvikling26"]
["VestElektronisk samhandling/integrasjoner/systemutvikling"]
[]
["VestDrift og Forvaltning av IT-systemer og plattformer1"]
["VestDrift og Forvaltning av IT-systemer og plattformer2"]
["VestDrift og Forvaltning av IT-systemer og plattformer3"]
["VestDrift og Forvaltning av IT-systemer og plattformer4"]
["VestDrift og Forvaltning av IT-systemer og plattformer5"]
["VestDrift og Forvaltning av IT-systemer og plattformer6"]
["VestDrift og Forvaltning av IT-systemer og plattformer7"]
["VestDrift og Forvaltning av IT-systemer og plattformer8"]
["VestDrift og Forvaltning av IT-systemer og plattformer9"]
["VestDrift og Forvaltning av IT-systemer og plattformer10"]
["VestDrift og Forvaltning av IT-systemer og plattformer11"]
["VestDrift og Forvaltning av IT-systemer og plattformer12"]
["VestDrift og Forvaltning av IT-systemer og plattformer13"]
["VestDrift og Forvaltning av IT-systemer og plattformer14"]
["VestDrift og Forvaltning av IT-systemer og plattformer15"]
["VestDrift og Forvaltning av IT-systemer og plattformer16"]
["VestDrift og Forvaltning av IT-systemer og plattformer17"]
["VestDrift og Forvaltning av IT-systemer og plattformer18"]
["VestDrift og Forvaltning av IT-systemer og plattformer19"]
["VestDrift og Forvaltning av IT-systemer og plattformer20"]
["VestDrift og Forvaltning av IT-systemer og plattformer21"]
["VestDrift og Forvaltning av IT-systemer og plattformer22"]
["VestDrift og Forvaltning av IT-systemer og plattformer23"]
["VestDrift og Forvaltning av IT-systemer og plattformer24"]
["VestDrift og Forvaltning av IT-systemer og plattformer25"]
["VestDrift og Forvaltning av IT-systemer og plattformer26"]
[]
["VestDatakommunikasjon og Telekommunikasjon1"]
["VestDatakommunikasjon og Telekommunikasjon2"]
["VestDatakommunikasjon og Telekommunikasjon3"]
["VestDatakommunikasjon og Telekommunikasjon4"]
["VestDatakommunikasjon og Telekommunikasjon5"]
["VestDatakommunikasjon og Telekommunikasjon6"]
["VestDatakommunikasjon og Telekommunikasjon7"]
["VestDatakommunikasjon og Telekommunikasjon8"]
["VestDatakommunikasjon og Telekommunikasjon9"]
["VestDatakommunikasjon og Telekommunikasjon10"]
["VestDatakommunikasjon og Telekommunikasjon11"]
["VestDatakommunikasjon og Telekommunikasjon12"]
["VestDatakommunikasjon og Telekommunikasjon13"]
["VestDatakommunikasjon og Telekommunikasjon14"]
["VestDatakommunikasjon og Telekommunikasjon15"]
["VestDatakommunikasjon og Telekommunikasjon16"]
["VestDatakommunikasjon og Telekommunikasjon17"]
["VestDatakommunikasjon og Telekommunikasjon18"]
["VestDatakommunikasjon og Telekommunikasjon19"]
["VestDatakommunikasjon og Telekommunikasjon20"]
["VestDatakommunikasjon og Telekommunikasjon21"]
["VestDatakommunikasjon og Telekommunikasjon22"]
["VestDatakommunikasjon og Telekommunikasjon23"]
["VestDatakommunikasjon og Telekommunikasjon24"]
["VestDatakommunikasjon og Telekommunikasjon25"]
["VestDatakommunikasjon og Telekommunikasjon26"]
[]
["VestApplikasjonsforvaltning1"]
["VestApplikasjonsforvaltning2"]
["VestApplikasjonsforvaltning3"]
["VestApplikasjonsforvaltning4"]
["VestApplikasjonsforvaltning5"]
["VestApplikasjonsforvaltning6"]
["VestApplikasjonsforvaltning7"]
["VestApplikasjonsforvaltning8"]
["VestApplikasjonsforvaltning9"]
["VestApplikasjonsforvaltning10"]
["VestApplikasjonsforvaltning11"]
["VestApplikasjonsforvaltning12"]
["VestApplikasjonsforvaltning13"]
["VestApplikasjonsforvaltning14"]
["VestApplikasjonsforvaltning15"]
["VestApplikasjonsforvaltning16"]
["VestApplikasjonsforvaltning17"]
["VestApplikasjonsforvaltning18"]
["VestApplikasjonsforvaltning19"]
["VestApplikasjonsforvaltning20"]
["VestApplikasjonsforvaltning21"]
["VestApplikasjonsforvaltning22"]
["VestApplikasjonsforvaltning23"]
["VestApplikasjonsforvaltning24"]
["VestApplikasjonsforvaltning25"]
["VestApplikasjonsforvaltning26"]
[]
["VestKlientplattform1"]
["VestKlientplattform2"]
["VestKlientplattform3"]
["VestKlientplattform4"]
["VestKlientplattform5"]
["VestKlientplattform6"]
["VestKlientplattform7"]
["VestKlientplattform8"]
["VestKlientplattform9"]
["VestKlientplattform10"]
["VestKlientplattform11"]
["VestKlientplattform12"]
["VestKlientplattform13"]
["VestKlientplattform14"]
["VestKlientplattform15"]
["VestKlientplattform16"]
["VestKlientplattform17"]
["VestKlientplattform18"]
["VestKlientplattform19"]
["VestKlientplattform20"]
["VestKlientplattform21"]
["VestKlientplattform22"]
["VestKlientplattform23"]
["VestKlientplattform24"]
["VestKlientplattform25"]
["VestKlientplattform26"]
[]
["Sør-ØstProgram og Prosjektgjennomføring1"]
["Sør-ØstProgram og Prosjektgjennomføring2"]
["Sør-ØstProgram og Prosjektgjennomføring3"]
["Sør-ØstProgram og Prosjektgjennomføring4"]
["Sør-ØstProgram og Prosjektgjennomføring5"]
["Sør-ØstProgram og Prosjektgjennomføring6"]
["Sør-ØstProgram og Prosjektgjennomføring7"]
["Sør-ØstProgram og Prosjektgjennomføring8"]
["Sør-ØstProgram og Prosjektgjennomføring9"]
["Sør-ØstProgram og Prosjektgjennomføring10"]
["Sør-ØstProgram og Prosjektgjennomføring11"]
["Sør-ØstProgram og Prosjektgjennomføring12"]
["Sør-ØstProgram og Prosjektgjennomføring13"]
["Sør-ØstProgram og Prosjektgjennomføring14"]
["Sør-ØstProgram og Prosjektgjennomføring15"]
["Sør-ØstProgram og Prosjektgjennomføring16"]
["Sør-ØstProgram og Prosjektgjennomføring17"]
["Sør-ØstProgram og Prosjektgjennomføring18"]
["Sør-ØstProgram og Prosjektgjennomføring19"]
["Sør-ØstProgram og Prosjektgjennomføring20"]
["Sør-ØstProgram og Prosjektgjennomføring21"]
["Sør-ØstProgram og Prosjektgjennomføring22"]
["Sør-ØstProgram og Prosjektgjennomføring23"]
["Sør-ØstProgram og Prosjektgjennomføring24"]
["Sør-ØstProgram og Prosjektgjennomføring25"]
["Sør-ØstProgram og Prosjektgjennomføring26"]
["Sør-ØstProgram og Prosjektgjennomføring27"]
["Sør-ØstProgram og Prosjektgjennomføring28"]
["Sør-ØstProgram og Prosjektgjennomføring29"]
["Sør-ØstProgram og Prosjektgjennomføring30"]
[]
["Sør-ØstStrategiplanlegging, rådgivning og innovasjon1"]
["Sør-ØstStrategiplanlegging, rådgivning og innovasjon2"]
["Sør-ØstStrategiplanlegging, rådgivning og innovasjon3"]
["Sør-ØstStrategiplanlegging, rådgivning og innovasjon4"]
["Sør-ØstStrategiplanlegging, rådgivning og innovasjon5"]
["Sør-ØstStrategiplanlegging, rådgivning og innovasjon6"]
["Sør-ØstStrategiplanlegging, rådgivning og innovasjon7"]
["Sør-ØstStrategiplanlegging, rådgivning og innovasjon8"]
["Sør-ØstStrategiplanlegging, rådgivning og innovasjon9"]
["Sør-ØstStrategiplanlegging, rådgivning og innovasjon10"]
["Sør-ØstStrategiplanlegging, rådgivning og innovasjon11"]
["Sør-ØstStrategiplanlegging, rådgivning og innovasjon12"]
["Sør-ØstStrategiplanlegging, rådgivning og innovasjon13"]
["Sør-ØstStrategiplanlegging, rådgivning og innovasjon14"]
["Sør-ØstStrategiplanlegging, rådgivning og innovasjon15"]
["Sør-ØstStrategiplanlegging, rådgivning og innovasjon16"]
["Sør-ØstStrategiplanlegging, rådgivning og innovasjon17"]
["Sør-ØstStrategiplanlegging, rådgivning og innovasjon18"]
["Sør-ØstStrategiplanlegging, rådgivning og innovasjon19"]
["Sør-ØstStrategiplanlegging, rådgivning og innovasjon20"]
["Sør-ØstStrategiplanlegging, rådgivning og innovasjon21"]
["Sør-ØstStrategiplanlegging, rådgivning og innovasjon22"]
["Sør-ØstStrategiplanlegging, rådgivning og innovasjon23"]
["Sør-ØstStrategiplanlegging, rådgivning og innovasjon24"]
["Sør-ØstStrategiplanlegging, rådgivning og innovasjon25"]
["Sør-ØstStrategiplanlegging, rådgivning og innovasjon26"]
["Sør-ØstStrategiplanlegging, rådgivning og innovasjon27"]
[]
["Sør-ØstArkitektur1"]
["Sør-ØstArkitektur2"]
["Sør-ØstArkitektur3"]
["Sør-ØstArkitektur4"]
["Sør-ØstArkitektur5"]
["Sør-ØstArkitektur6"]
["Sør-ØstArkitektur7"]
["Sør-ØstArkitektur8"]
["Sør-ØstArkitektur9"]
["Sør-ØstArkitektur10"]
["Sør-ØstArkitektur11"]
["Sør-ØstArkitektur12"]
["Sør-ØstArkitektur13"]
["Sør-ØstArkitektur14"]
["Sør-ØstArkitektur15"]
["Sør-ØstArkitektur16"]
["Sør-ØstArkitektur17"]
["Sør-ØstArkitektur18"]
["Sør-ØstArkitektur19"]
["Sør-ØstArkitektur20"]
["Sør-ØstArkitektur21"]
["Sør-ØstArkitektur22"]
["Sør-ØstArkitektur23"]
["Sør-ØstArkitektur24"]
["Sør-ØstArkitektur25"]
["Sør-ØstArkitektur26"]
[]
["Sør-ØstInformasjonssikkerhet1"]
["Sør-ØstInformasjonssikkerhet2"]
["Sør-ØstInformasjonssikkerhet3"]
["Sør-ØstInformasjonssikkerhet4"]
["Sør-ØstInformasjonssikkerhet5"]
["Sør-ØstInformasjonssikkerhet6"]
["Sør-ØstInformasjonssikkerhet7"]
["Sør-ØstInformasjonssikkerhet8"]
["Sør-ØstInformasjonssikkerhet9"]
["Sør-ØstInformasjonssikkerhet10"]
["Sør-ØstInformasjonssikkerhet11"]
["Sør-ØstInformasjonssikkerhet12"]
["Sør-ØstInformasjonssikkerhet13"]
["Sør-ØstInformasjonssikkerhet14"]
["Sør-ØstInformasjonssikkerhet15"]
["Sør-ØstInformasjonssikkerhet16"]
["Sør-ØstInformasjonssikkerhet17"]
["Sør-ØstInformasjonssikkerhet18"]
["Sør-ØstInformasjonssikkerhet19"]
["Sør-ØstInformasjonssikkerhet20"]
["Sør-ØstInformasjonssikkerhet21"]
["Sør-ØstInformasjonssikkerhet22"]
["Sør-ØstInformasjonssikkerhet23"]
["Sør-ØstInformasjonssikkerhet24"]
["Sør-ØstInformasjonssikkerhet25"]
["Sør-ØstInformasjonssikkerhet26"]
[]
["Sør-ØstTestledelse og Release-gjennomføring1"]
["Sør-ØstTestledelse og Release-gjennomføring2"]
["Sør-ØstTestledelse og Release-gjennomføring3"]
["Sør-ØstTestledelse og Release-gjennomføring4"]
["Sør-ØstTestledelse og Release-gjennomføring5"]
["Sør-ØstTestledelse og Release-gjennomføring6"]
["Sør-ØstTestledelse og Release-gjennomføring7"]
["Sør-ØstTestledelse og Release-gjennomføring8"]
["Sør-ØstTestledelse og Release-gjennomføring9"]
["Sør-ØstTestledelse og Release-gjennomføring10"]
["Sør-ØstTestledelse og Release-gjennomføring11"]
["Sør-ØstTestledelse og Release-gjennomføring12"]
["Sør-ØstTestledelse og Release-gjennomføring13"]
["Sør-ØstTestledelse og Release-gjennomføring14"]
["Sør-ØstTestledelse og Release-gjennomføring15"]
["Sør-ØstTestledelse og Release-gjennomføring16"]
["Sør-ØstTestledelse og Release-gjennomføring17"]
["Sør-ØstTestledelse og Release-gjennomføring18"]
["Sør-ØstTestledelse og Release-gjennomføring19"]
["Sør-ØstTestledelse og Release-gjennomføring20"]
["Sør-ØstTestledelse og Release-gjennomføring21"]
["Sør-ØstTestledelse og Release-gjennomføring22"]
["Sør-ØstTestledelse og Release-gjennomføring23"]
["Sør-ØstTestledelse og Release-gjennomføring24"]
["Sør-ØstTestledelse og Release-gjennomføring25"]
["Sør-ØstTestledelse og Release-gjennomføring26"]
[]
["Sør-ØstElektronisk samhandling/integrasjoner/systemutvikling1"]
["Sør-ØstElektronisk samhandling/integrasjoner/systemutvikling2"]
["Sør-ØstElektronisk samhandling/integrasjoner/systemutvikling3"]
["Sør-ØstElektronisk samhandling/integrasjoner/systemutvikling4"]
["Sør-ØstElektronisk samhandling/integrasjoner/systemutvikling5"]
["Sør-ØstElektronisk samhandling/integrasjoner/systemutvikling6"]
["Sør-ØstElektronisk samhandling/integrasjoner/systemutvikling7"]
["Sør-ØstElektronisk samhandling/integrasjoner/systemutvikling8"]
["Sør-ØstElektronisk samhandling/integrasjoner/systemutvikling9"]
["Sør-ØstElektronisk samhandling/integrasjoner/systemutvikling10"]
["Sør-ØstElektronisk samhandling/integrasjoner/systemutvikling11"]
["Sør-ØstElektronisk samhandling/integrasjoner/systemutvikling12"]
["Sør-ØstElektronisk samhandling/integrasjoner/systemutvikling13"]
["Sør-ØstElektronisk samhandling/integrasjoner/systemutvikling14"]
["Sør-ØstElektronisk samhandling/integrasjoner/systemutvikling15"]
["Sør-ØstElektronisk samhandling/integrasjoner/systemutvikling16"]
["Sør-ØstElektronisk samhandling/integrasjoner/systemutvikling17"]
["Sør-ØstElektronisk samhandling/integrasjoner/systemutvikling18"]
["Sør-ØstElektronisk samhandling/integrasjoner/systemutvikling19"]
["Sør-ØstElektronisk samhandling/integrasjoner/systemutvikling20"]
["Sør-ØstElektronisk samhandling/integrasjoner/systemutvikling21"]
["Sør-ØstElektronisk samhandling/integrasjoner/systemutvikling22"]
["Sør-ØstElektronisk samhandling/integrasjoner/systemutvikling23"]
["Sør-ØstElektronisk samhandling/integrasjoner/systemutvikling24"]
["Sør-ØstElektronisk samhandling/integrasjoner/systemutvikling25"]
["Sør-ØstElektronisk samhandling/integrasjoner/systemutvikling26"]
["Sør-ØstElektronisk samhandling/integrasjoner/systemutvikling"]
[]
["Sør-ØstDrift og Forvaltning av IT-systemer og plattformer1"]
["Sør-ØstDrift og Forvaltning av IT-systemer og plattformer2"]
["Sør-ØstDrift og Forvaltning av IT-systemer og plattformer3"]
["Sør-ØstDrift og Forvaltning av IT-systemer og plattformer4"]
["Sør-ØstDrift og Forvaltning av IT-systemer og plattformer5"]
["Sør-ØstDrift og Forvaltning av IT-systemer og plattformer6"]
["Sør-ØstDrift og Forvaltning av IT-systemer og plattformer7"]
["Sør-ØstDrift og Forvaltning av IT-systemer og plattformer8"]
["Sør-ØstDrift og Forvaltning av IT-systemer og plattformer9"]
["Sør-ØstDrift og Forvaltning av IT-systemer og plattformer10"]
["Sør-ØstDrift og Forvaltning av IT-systemer og plattformer11"]
["Sør-ØstDrift og Forvaltning av IT-systemer og plattformer12"]
["Sør-ØstDrift og Forvaltning av IT-systemer og plattformer13"]
["Sør-ØstDrift og Forvaltning av IT-systemer og plattformer14"]
["Sør-ØstDrift og Forvaltning av IT-systemer og plattformer15"]
["Sør-ØstDrift og Forvaltning av IT-systemer og plattformer16"]
["Sør-ØstDrift og Forvaltning av IT-systemer og plattformer17"]
["Sør-ØstDrift og Forvaltning av IT-systemer og plattformer18"]
["Sør-ØstDrift og Forvaltning av IT-systemer og plattformer19"]
["Sør-ØstDrift og Forvaltning av IT-systemer og plattformer20"]
["Sør-ØstDrift og Forvaltning av IT-systemer og plattformer21"]
["Sør-ØstDrift og Forvaltning av IT-systemer og plattformer22"]
["Sør-ØstDrift og Forvaltning av IT-systemer og plattformer23"]
["Sør-ØstDrift og Forvaltning av IT-systemer og plattformer24"]
["Sør-ØstDrift og Forvaltning av IT-systemer og plattformer25"]
["Sør-ØstDrift og Forvaltning av IT-systemer og plattformer26"]
[]
["Sør-ØstDatakommunikasjon og Telekommunikasjon1"]
["Sør-ØstDatakommunikasjon og Telekommunikasjon2"]
["Sør-ØstDatakommunikasjon og Telekommunikasjon3"]
["Sør-ØstDatakommunikasjon og Telekommunikasjon4"]
["Sør-ØstDatakommunikasjon og Telekommunikasjon5"]
["Sør-ØstDatakommunikasjon og Telekommunikasjon6"]
["Sør-ØstDatakommunikasjon og Telekommunikasjon7"]
["Sør-ØstDatakommunikasjon og Telekommunikasjon8"]
["Sør-ØstDatakommunikasjon og Telekommunikasjon9"]
["Sør-ØstDatakommunikasjon og Telekommunikasjon10"]
["Sør-ØstDatakommunikasjon og Telekommunikasjon11"]
["Sør-ØstDatakommunikasjon og Telekommunikasjon12"]
["Sør-ØstDatakommunikasjon og Telekommunikasjon13"]
["Sør-ØstDatakommunikasjon og Telekommunikasjon14"]
["Sør-ØstDatakommunikasjon og Telekommunikasjon15"]
["Sør-ØstDatakommunikasjon og Telekommunikasjon16"]
["Sør-ØstDatakommunikasjon og Telekommunikasjon17"]
["Sør-ØstDatakommunikasjon og Telekommunikasjon18"]
["Sør-ØstDatakommunikasjon og Telekommunikasjon19"]
["Sør-ØstDatakommunikasjon og Telekommunikasjon20"]
["Sør-ØstDatakommunikasjon og Telekommunikasjon21"]
["Sør-ØstDatakommunikasjon og Telekommunikasjon22"]
["Sør-ØstDatakommunikasjon og Telekommunikasjon23"]
["Sør-ØstDatakommunikasjon og Telekommunikasjon24"]
["Sør-ØstDatakommunikasjon og Telekommunikasjon25"]
["Sør-ØstDatakommunikasjon og Telekommunikasjon26"]
[]
["Sør-ØstApplikasjonsforvaltning1"]
["Sør-ØstApplikasjonsforvaltning2"]
["Sør-ØstApplikasjonsforvaltning3"]
["Sør-ØstApplikasjonsforvaltning4"]
["Sør-ØstApplikasjonsforvaltning5"]
["Sør-ØstApplikasjonsforvaltning6"]
["Sør-ØstApplikasjonsforvaltning7"]
["Sør-ØstApplikasjonsforvaltning8"]
["Sør-ØstApplikasjonsforvaltning9"]
["Sør-ØstApplikasjonsforvaltning10"]
["Sør-ØstApplikasjonsforvaltning11"]
["Sør-ØstApplikasjonsforvaltning12"]
["Sør-ØstApplikasjonsforvaltning13"]
["Sør-ØstApplikasjonsforvaltning14"]
["Sør-ØstApplikasjonsforvaltning15"]
["Sør-ØstApplikasjonsforvaltning16"]
["Sør-ØstApplikasjonsforvaltning17"]
["Sør-ØstApplikasjonsforvaltning18"]
["Sør-ØstApplikasjonsforvaltning19"]
["Sør-ØstApplikasjonsforvaltning20"]
["Sør-ØstApplikasjonsforvaltning21"]
["Sør-ØstApplikasjonsforvaltning22"]
["Sør-ØstApplikasjonsforvaltning23"]
["Sør-ØstApplikasjonsforvaltning24"]
["Sør-ØstApplikasjonsforvaltning25"]
["Sør-ØstApplikasjonsforvaltning26"]
[]
["Sør-ØstKlientplattform1"]
["Sør-ØstKlientplattform2"]
["Sør-ØstKlientplattform3"]
["Sør-ØstKlientplattform4"]
["Sør-ØstKlientplattform5"]
["Sør-ØstKlientplattform6"]
["Sør-ØstKlientplattform7"]
["Sør-ØstKlientplattform8"]
["Sør-ØstKlientplattform9"]
["Sør-ØstKlientplattform10"]
["Sør-ØstKlientplattform11"]
["Sør-ØstKlientplattform12"]
["Sør-ØstKlientplattform13"]
["Sør-ØstKlientplattform14"]
["Sør-ØstKlientplattform15"]
["Sør-ØstKlientplattform16"]
["Sør-ØstKlientplattform17"]
["Sør-ØstKlientplattform18"]
["Sør-ØstKlientplattform19"]
["Sør-ØstKlientplattform20"]
["Sør-ØstKlientplattform21"]
["Sør-ØstKlientplattform22"]
["Sør-ØstKlientplattform23"]
["Sør-ØstKlientplattform24"]
["Sør-ØstKlientplattform25"]
["Sør-ØstKlientplattform26"]
[]
["Sør-ØstKonsulentformidling/Broker1"]
["Sør-ØstKonsulentformidling/Broker2"]
["Sør-ØstKonsulentformidling/Broker3"]
["Sør-ØstKonsulentformidling/Broker4"]
["Sør-ØstKonsulentformidling/Broker5"]
["Sør-ØstKonsulentformidling/Broker6"]
["Sør-ØstKonsulentformidling/Broker7"]
["Sør-ØstKonsulentformidling/Broker8"]
["Sør-ØstKonsulentformidling/Broker9"]
["Sør-ØstKonsulentformidling/Broker10"]
["Sør-ØstKonsulentformidling/Broker11"]
["Sør-ØstKonsulentformidling/Broker12"]
["Sør-ØstKonsulentformidling/Broker13"]
["Sør-ØstKonsulentformidling/Broker14"]
["Sør-ØstKonsulentformidling/Broker15"]
["Sør-ØstKonsulentformidling/Broker16"]
["Sør-ØstKonsulentformidling/Broker17"]
["Sør-ØstKonsulentformidling/Broker18"]
["Sør-ØstKonsulentformidling/Broker19"]
["Sør-ØstKonsulentformidling/Broker20"]
["Sør-ØstKonsulentformidling/Broker21"]
["Sør-ØstKonsulentformidling/Broker22"]
["Sør-ØstKonsulentformidling/Broker23"]
["Sør-ØstKonsulentformidling/Broker24"]
["Sør-ØstKonsulentformidling/Broker25"]
["Sør-ØstKonsulentformidling/Broker26"]
[{"$f":"Database!$B1463&Database!$C1463&Database!$D1463","v":""}]

{"sheet":"Lister","index":2,"n_rows":41,"n_cols":11,"rows_kept":41,"cut":false,"hidden":true,"merged":[]}
[null,null,"Område","Kolonne1","Delområde",null,null,null,null,null,"Leverandør"]
[null,null,"1 - Velg område fra rullegardinen her","Velg_omr","2 - Velg delområde fra rullegardinen her"]
[null,null,"Nord RHF","Nord ","Delkontrakt A: Strategi - og organisasjonsutvikling - Alle RHF"]
[null,null,"Midt-Norge RHF","Midt_Norge ","Delkontrakt B1: Leder - og ledelsesutvikling - Helse Nord RHF"]
[null,null,"Vest RHF","Vest ","Delkontrakt B2: Leder - og ledelsesutvikling - Helse Midt-Norge RHF"]
[null,null,"Sør-Øst RHF","Sør_Øst","Delkontrakt B3: Leder - og ledelsesutvikling - Helse Vest RHF"]
[null,null,null,null,"Delkontrakt B4: Leder - og ledelsesutvikling - Helse Sør-Øst RHF"]
[]
[]
[]
[]
[]
[]
[]
[]
[]
[]
[]
[]
[]
[]
[]
[]
[]
[]
[]
[]
[]
[]
[]
[]
[]
[]
[]
[]
[]
[]
["Velg_omr",null,"Nord",null,"Midt_Norge","Vest","Sør_Øst"]
["2 - Velg delområde fra rullegardinen her",null,"2 - Velg delområde fra rullegardinen her",null,"2 - Velg delområde fra rullegardinen her","2 - Velg delområde fra rullegardinen her","2 - Velg delområde fra rullegardinen her"]
[null,null,"Delkontrakt A: Strategi - og organisasjonsutvikling - Alle RHF",null,"Delkontrakt A: Strategi - og organisasjonsutvikling - Alle RHF","Delkontrakt A: Strategi - og organisasjonsutvikling - Alle RHF","Delkontrakt A: Strategi - og organisasjonsutvikling - Alle RHF"]
[null,null,"Delkontrakt B1: Leder - og ledelsesutvikling - Helse Nord RHF",null,"Delkontrakt B2: Leder - og ledelsesutvikling - Helse Midt-Norge RHF","Delkontrakt B3: Leder - og ledelsesutvikling - Helse Vest RHF","Delkontrakt B4: Leder - og ledelsesutvikling - Helse Sør-Øst RHF"]

{"sheet":"Rangering","index":3,"n_rows":71,"n_cols":31,"rows_kept":71,"cut":false,"hidden":true,"merged":[]}
[]
[]
[]
[]
[]
[]
[null,"Program og Prosjektgjennomføring",null,null,null,null,"Strategiplanlegging, rådgivning og innovasjon",null,null,null,null,"Arkitektur",null,null,null,null,"Informasjonssikkerhet",null,null,null,null,"Testledelse og Release-gjennomføring"]
[null,"Rangering","Helse Nord RHF","Helse Midt-Norge RHF","Helse Vest RHF","Helse Sør-Øst RHF","Rangering","Helse Nord RHF","Helse Midt-Norge RHF","Helse Vest RHF","Helse Sør-Øst RHF","Rangering","Helse Nord RHF","Helse Midt-Norge RHF","Helse Vest RHF","Helse Sør-Øst RHF","Rangering","Helse Nord RHF","Helse Midt-Norge RHF","Helse Vest RHF","Helse Sør-Øst RHF","Rangering","Helse Nord RHF","Helse Midt-Norge RHF","Helse Vest RHF","Helse Sør-Øst RHF"]
[null,1,"A-2 Norge","Atea AS","A-2 Norge","Accenture AS",1,"A-2 Norge","A-2 Norge","A-2 Norge","A-2 Norge",1,"A-2 Norge","Acando AS","A-2 Norge","A-2 Norge",1,"Acando AS","Acando AS","Acando AS","Bouvet Norge AS",1,"Acando AS","Acando AS","Acando AS","Acando AS"]
[null,2,"Accenture AS","Atkins Norge AS","Accenture AS","Atkins Norge AS",2,"Accenture AS","Atkins Norge AS","Accenture AS","Accenture AS",2,"Acando AS","Atkins Norge AS","Acando AS","Acando AS",2,"Accenture AS","Bouvet Norge AS","Accenture AS","Ernst & Young AS",2,"Atkins Norge AS","Atkins Norge AS","Accenture AS","Atkins Norge AS"]
[null,3,"Atea AS","Bouvet Norge AS","Arthur D. Little","Bouvet Norge AS",3,"Atkins Norge AS","Bouvet Norge AS","Arthur D. Little","Arthur D. Little",3,"Accenture AS","Bouvet Norge AS","Accenture AS","Atkins Norge AS",3,"Bouvet Norge AS","Ernst & Young AS","Bouvet Norge AS","mnemonic AS",3,"Bouvet Norge AS","Bouvet Norge AS","Atkins Norge AS","Capgemini Norge AS"]
[null,4,"Bouvet Norge AS","Datametrix","Atea AS","Datametrix",4,"BearingPoint Norway AS","Experis AS","Atkins Norge AS","Atkins Norge AS",4,"Atkins Norge AS","Ernst & Young AS","Atkins Norge AS","Bouvet Norge AS",4,"Deloitte AS","EVRY Norge AS","Capgemini Norge AS","Norconsult AS",4,"Experis AS","Experis AS","Bouvet Norge AS","Experis AS"]
[null,5,"Datametrix","Ernst & Young AS","Atkins Norge AS","Deloitte AS",5,"Bouvet Norge AS","Metier AS","BearingPoint Norway AS","BearingPoint Norway AS",5,"Bouvet Norge AS","EVRY Norge AS","BearingPoint Norway AS","Capra Consulting",5,"Ernst & Young AS","KPMG AS","Cisco Systems Norway AS","Sopra Steria AS",5,"Fornebu Consulting AS","SOCO Norge AS","Capgemini Norge AS","Fornebu Consulting AS"]
[null,6,"Deloitte AS","EVERY Norge AS","BearingPoint Norway AS","Ernst & Young AS",6,"Datametrix","Sopra Steria AS","Bouvet Norge AS","Bouvet Norge AS",6,"Ernst & Young AS","Experis AS","Bouvet Norge AS","Ernst & Young AS",6,"EVRY Norge AS",null,"Deloitte AS","Transcendent Group",6,"SOCO Norge AS","Sopra Steria AS","CSC Norge AS","Inmeta Consulting AS"]
[null,7,"Ernst & Young AS","Experis AS","Bouvet Norge AS","EVRY Norge AS",7,"Deloitte AS",null,"Cisco Systems Norway AS","Cisco Systems Norway AS",7,"Experis AS","Fornebu Consulting AS","Capgemini Norge AS","Experis AS",7,"Experis AS",null,"DNV GL Business Assurance Norway AS",null,7,"Sopra Steria AS",null,"EBS Consulting AS","SOCO Norge AS"]
[null,8,"EVERY Norge AS","Metier AS","Capgemini Norge AS","Experis AS",8,"Ernst & Young AS",null,"CSC Norge AS","CSC Norge AS",8,"Fornebu Consulting AS","Sopra Steria AS","CSC Norge AS","Fornebu Consulting AS",8,"Fornebu Consulting AS",null,"Ernst & Young AS",null,8,null,null,"Experis AS","Sopra Steria AS"]
[null,9,"Experis AS","Sopra Steria AS","CSC Norge AS","Fornebu Consulting AS",9,"Experis AS",null,"Datametrix","Datametrix",9,"Netsense AS",null,"Ernst & Young AS","International Business Machines AS",9,"KPMG AS",null,"EVRY Norge AS",null,9,null,null,"Fornebu Consulting AS","Visma Consulting AS"]
[null,10,"Fornebu Consulting AS",null,"Datametrix","Holte Consulting AS",10,"Fornebu Consulting AS",null,"Deloitte AS","Deloitte AS",10,"PwC AS",null,"EVRY Norge AS","Netsense AS",10,"PwC AS",null,"Experis AS",null,10,null,null,"HiQ Göteborg AB"]
[null,11,"KPMG AS",null,"Deloitte AS","Inmeta Consulting AS",11,"HiQ Göteborg AB",null,"DNV GL Business Assurance Norway AS","DNV GL Business Assurance Norway AS",11,"Qualisoft AS",null,"Experis AS","PwC AS",11,"Sopra Steria AS",null,"Fornebu Consulting AS",null,11,null,null,"International Business Machines AS"]
[null,12,"Metier AS",null,"EBS Consulting AS","International Business Machines AS",12,"International Business Machines AS",null,"Ernst & Young AS","Ernst & Young AS",12,"Sopra Steria AS",null,"Fornebu Consulting AS","Sopra Steria AS",12,"Transcendent Group",null,"KPMG AS",null,12,null,null,"KPMG AS"]
[null,13,"PA Consulting Group AS",null,"Ernst & Young AS","Metier AS",13,"Karabin AS",null,"Experis AS","Experis AS",13,null,null,"HiQ Göteborg AB","Visma Consulting AS",13,null,null,"Profitbase AS",null,13,null,null,"Omega AS"]
[null,14,"PwC AS",null,"EVRY Norge AS","Sopra Steria AS",14,"KPMG AS",null,"Fornebu Consulting AS","Fornebu Consulting AS",14,null,null,"International Business Machines AS",null,14,null,null,"PwC AS",null,14,null,null,"SOCO Norge AS"]
[null,15,"Sopra Steria AS",null,"Experis AS","Visma Consulting AS",15,"Metier AS",null,"HiQ Göteborg AB","HiQ Göteborg AB",15,null,null,"KPMG AS",null,15,null,null,"Sopra Steria AS",null,15,null,null,"Sopra Steria AS"]
[null,16,null,null,"Fornebu Consulting AS",null,16,"PA Consulting Group AS",null,"International Business Machines AS","International Business Machines AS",16,null,null,"mnemonic AS",null,16,null,null,"Transcendent Group"]
[null,17,null,null,"HiQ Göteborg AB",null,17,"PwC AS",null,"Karabin AS","Karabin AS",17,null,null,"Netsense AS"]
[null,18,null,null,"Holte Consulting AS",null,18,"Qualisoft AS",null,"KPMG AS","KPMG AS",18,null,null,"Omega AS"]
[null,19,null,null,"International Business Machines AS",null,19,"Sopra Steria AS",null,"McKinsey & Company ","McKinsey & Company ",19,null,null,"PwC AS"]
[null,20,null,null,"Karabin AS",null,20,"The Boston Consulting Group",null,"Metier AS","Metier AS",20,null,null,"Qualisoft AS"]
[null,21,null,null,"KPMG AS",null,21,null,null,"PA Consulting Group AS","PA Consulting Group AS",21,null,null,"Sopra Steria AS"]
[null,22,null,null,"McKinsey & Company ",null,22,null,null,"Profitbase AS","Profitbase AS"]
[null,23,null,null,"Metier AS",null,23,null,null,"PwC AS","PwC AS"]
[null,24,null,null,"Omega AS",null,24,null,null,"Qualisoft AS","Qualisoft AS"]
[null,25,null,null,"PA Consulting Group AS",null,25,null,null,"Sopra Steria AS","Sopra Steria AS"]
[null,26,null,null,"Profitbase AS",null,26,null,null,"The Boston Consulting Group","Sprint Consulting AS"]
[null,27,null,null,"PwC AS",null,27,null,null,null,"The Boston Consulting Group"]
[null,28,null,null,"Qualisoft AS"]
[null,29,null,null,"Sopra Steria AS"]
[null,30,null,null,"The Boston Consulting Group"]
[]
[]
[]
[]
[]
[]
[]
[null,"Elektronisk samhandling/integrasjoner/systemutvikling",null,null,null,null,"Drift og Forvaltning av IT-systemer og plattformer",null,null,null,null,"Datakommunikasjon og Telekommunikasjon",null,null,null,null,"Applikasjonsforvaltning",null,null,null,null,"Klientplattform",null,null,null,null,"Konsulentformidling/Broker"]
[null,"Rangering","Helse Nord RHF","Helse Midt-Norge RHF","Helse Vest RHF","Helse Sør-Øst RHF","Rangering","Helse Nord RHF","Helse Midt-Norge RHF","Helse Vest RHF","Helse Sør-Øst RHF","Rangering","Helse Nord RHF","Helse Midt-Norge RHF","Helse Vest RHF","Helse Sør-Øst RHF","Rangering","Helse Nord RHF","Helse Midt-Norge RHF","Helse Vest RHF","Helse Sør-Øst RHF","Rangering","Helse Nord RHF","Helse Midt-Norge RHF","Helse Vest RHF","Helse Sør-Øst RHF","Rangering","Helse Nord RHF","Helse Midt-Norge RHF","Helse Vest RHF","Helse Sør-Øst RHF"]
[null,1,"Acando AS","Acando AS","Acando AS","Acando AS",1,"Atea AS","Atea AS","Atea AS","Bouvet Norge AS",1,"Atea AS","Atea AS","Atea AS","Atea AS",1,"Bouvet Norge AS","Acando AS","Acando AS","Acando AS",1,"Accenture AS","Atea AS","Accenture AS","Bouvet Norge AS",1,null,null,null,"eWork Norge AS"]
[null,2,"Atkins Norge AS","Bouvet Norge AS","Accenture AS","Atkins Norge AS",2,"Crayon AS","Crayon AS","Bouvet Norge AS","Crayon AS",2,"Cisco Systems Norway AS","Datametrix","Cisco Systems Norway AS","Datametrix",2,"EVRY Norge AS","Bouvet Norge AS","Accenture AS","Bouvet Norge AS",2,"Atea AS","Bouvet Norge AS","Atea AS","Crayon AS",2,null,null,null,"House of Consulting AS"]
[null,3,"Bouvet Norge AS","Conceptos AS","Atkins Norge AS","Bouvet Norge AS",3,"Datametrix","Datametrix","Candidator AB","Datametrix",3,"Datametrix","EVRY Norge AS","CSC Norge AS","EVRY Norge AS",3,"HiQ Göteborg AB","EVRY Norge AS","Bouvet Norge AS","Capgemini Norge AS",3,"Bouvet Norge AS","Crayon AS","Bouvet Norge AS","EVRY Norge AS"]
[null,4,"Capgemini Norge AS","Experis AS","BearingPoint Norway AS","Capgemini Norge AS",4,"EVRY Norge AS","EVRY Norge AS","Crayon AS","EVRY Norge AS",4,"EVRY Norge AS","Experis AS","Datametrix","Fornebu Consulting AS",4,"Netsense AS","Experis AS","Capgemini Norge AS","EVRY Norge AS",4,"Crayon AS","Datametrix","Crayon AS","IT Consult AS"]
[null,5,"Deloitte AS","Fornebu Consulting AS","Bouvet Norge AS","Capra Consulting",5,"IT Consult AS","IT Consult AS","CSC Norge AS","IT Consult AS",5,"Experis AS","IP Nett AS","EVRY Norge AS","IP Nett AS",5,"RisCo AS","HiQ Göteborg AB","CSC Norge AS","HiQ Göteborg AB",5,"Datametrix","EVRY Norge AS","CSC Norge AS","Netsense AS"]
[null,6,"Edisys Consulting AS","HiQ Göteborg AB","Capgemini Norge AS","Conceptos AS",6,"Proact IT Norge AS","Proact IT Norge AS","Datametrix","Redpill Linpro AS",6,"Fornebu Consulting AS","IT Consult AS","Experis AS","IT Consult AS",6,"Sopra Steria AS","Sopra Steria AS","EBS Consulting AS","Sopra Steria AS",6,"EVRY Norge AS","Experis AS","Datametrix","Sopra Steria AS"]
[null,7,"Ernst & Young AS","Inmeta Consulting AS","Conceptos AS","EVRY Norge AS",7,"Sopra Steria AS","Sopra Steria AS","EBS Consulting AS","Sopra Steria AS",7,"International Business Machines AS","nLogic AS","Fornebu Consulting AS","Sopra Steria AS",7,null,null,"EVRY Norge AS",null,7,"Experis AS","IT Consult AS","EVRY Norge AS"]
[null,8,"EVRY Norge AS","Sopra Steria AS","CSC Norge AS","Experis AS",8,"SYSCO AS",null,"EVRY Norge AS","SYSCO AS",8,"IP Nett AS","Sopra Steria AS","International Business Machines AS",null,8,null,null,"Experis AS",null,8,"International Business Machines AS","Sopra Steria AS","Experis AS"]
[null,9,"Experis AS",null,"Deloitte AS","Fornebu Consulting AS",9,null,null,"International Business Machines AS",null,9,"IT Consult AS",null,"IP Nett AS",null,9,null,null,"HiQ Göteborg AB",null,9,"IT Consult AS",null,"International Business Machines AS"]
[null,10,"Fornebu Consulting AS",null,"EBS Consulting AS","HiQ Göteborg AB",10,null,null,"IT Consult AS",null,10,"IT Partner Tromsø AS",null,"IT Consult AS",null,10,null,null,"Netsense AS",null,10,"Netsense AS",null,"IT Consult AS"]
[null,11,"Furore",null,"Edisys Consulting AS","Inmeta Consulting AS",11,null,null,"Proact IT Norge AS",null,11,"nLogic AS",null,"mnemonic AS",null,11,null,null,"Profitbase AS",null,11,null,null,"mnemonic AS"]
[null,12,"HiQ Göteborg AB",null,"Ernst & Young AS","Sopra Steria AS",12,null,null,"Sopra Steria AS",null,12,"Sopra Steria AS",null,"nLogic AS",null,12,null,null,"Sopra Steria AS",null,12,null,null,"Netsense AS"]
[null,13,"KPMG AS",null,"EVRY Norge AS","Visma Consulting AS",13,null,null,"SYSCO AS",null,13,null,null,"Sopra Steria AS",null,null,null,null,null,null,13,null,null,"Sopra Steria AS"]
[null,14,"SAS institute AS",null,"Experis AS"]
[null,15,"Sopra Steria AS",null,"Fornebu Consulting AS"]
[null,16,null,null,"Furore"]
[null,17,null,null,"HiQ Göteborg AB"]
[null,18,null,null,"International Business Machines AS"]
[null,19,null,null,"KPMG AS"]
[null,20,null,null,"Omega AS"]
[null,21,null,null,"Profitbase AS"]
[null,22,null,null,"SAS institute AS"]
[null,23,null,null,"Sopra Steria AS"]
[null,24,null,null,"SYSCO AS"]